Departmental Area,Entity,Payment Date,Expense type,Expense Area,Supplier Name,Payment Reference, Invoice Distribution Amount ,Description,Supplier Type,Expenditure Type,,
UK Statistics Family,Office for National Statistics,01/07/2021,FM Contract Payments,Researcher Support And Data Access ,Vinci Construction UK Limited,204885,"91,907.86",Facilities Mangement Services,Large,Programme Expenditure,,
UK Statistics Family,Office for National Statistics,01/07/2021,Postage,Survey Processing Centre,DHL Parcel Ltd,204890,"31,045.34",Postage,Large,Programme Expenditure,,
UK Statistics Family,Office for National Statistics,01/07/2021,Exp - Purchase Of Goods/Services - Contractors,Business Architecture,La International,204892,"13,845.92",Information Management Services,SME,Programme Expenditure,,
UK Statistics Family,Office for National Statistics,01/07/2021,Exp - Purchase Of Goods/Services - Contractors,Business Architecture,La International,204892,"3,588.30",Information Management Services,SME,Programme Expenditure,,
UK Statistics Family,Office for National Statistics,01/07/2021,Exp - Purchase Of Goods/Services - Contractors,Testing,La International,204892,"17,460.95",Information Management Services,SME,Programme Expenditure,,
UK Statistics Family,Office for National Statistics,01/07/2021,Exp - Purchase Of Goods/Services - Contractors,Testing,La International,204892,"5,793.62",Information Management Services,SME,Programme Expenditure,,
UK Statistics Family,Office for National Statistics,01/07/2021,Exp - Purchase Of Goods/Services - Contractors,HALE,La International,204892,"2,896.50",Information Management Services,SME,Programme Expenditure,,
UK Statistics Family,Office for National Statistics,01/07/2021,Exp - Purchase Of Goods/Services - Contractors,Data Architecture,La International,204892,"3,524.22",Information Management Services,SME,Programme Expenditure,,
UK Statistics Family,Office for National Statistics,01/07/2021,Exp - Purchase Of Goods/Services - Contractors,Data Architecture,La International,204892,"7,112.52",Information Management Services,SME,Programme Expenditure,,
UK Statistics Family,Office for National Statistics,01/07/2021,Exp - Purchase Of Goods/Services - Contractors,Data Architecture,La International,204892,"3,524.22",Information Management Services,SME,Programme Expenditure,,
UK Statistics Family,Office for National Statistics,01/07/2021,Exp - Purchase Of Goods/Services - Contractors,CLOUD ARCHITECTURE,La International,204892,"3,844.62",Information Management Services,SME,Programme Expenditure,,
UK Statistics Family,Office for National Statistics,01/07/2021,Exp - Short-Term Contract & Agency Staff - Full Cost,Social Survey Transformation Titchfield,La International,204892,756.00,Information Management Services,SME,Programme Expenditure,,
UK Statistics Family,Office for National Statistics,01/07/2021,EXP - PURCHASE OF GOODS/SERVICES -  NON IT CONTRACTUAL PAYMENTS,Covid Infection Survey,HH Associates Ltd,204907,"157,829.69",Print and Post Services,SME,Programme Expenditure,,
UK Statistics Family,Office for National Statistics,01/07/2021,EXP - PURCHASE OF GOODS/SERVICES -  NON IT CONTRACTUAL PAYMENTS,Census CCS Data Collection,Granby Marketing Services Ltd,204908,"345,981.19",Stoarage and Distribution Services,Large,Programme Expenditure,,
UK Statistics Family,Office for National Statistics,01/07/2021,Exp - Short-Term Contract & Agency Staff - Full Cost,Census CCS Data Collection,Talent International,204910,"2,908.67",Information Management Services,SME,Programme Expenditure,,
UK Statistics Family,Office for National Statistics,01/07/2021,Exp - Short-Term Contract & Agency Staff - Full Cost,Census CCS Data Collection,Talent International,204910,84.91,Information Management Services,SME,Programme Expenditure,,
UK Statistics Family,Office for National Statistics,01/07/2021,Exp - Purchase Of Goods/Services - Contractors,Covid Infection Survey,Talent International,204910,"2,995.00",Information Management Services,SME,Programme Expenditure,,
UK Statistics Family,Office for National Statistics,01/07/2021,Exp - Short-Term Contract & Agency Staff - Full Cost,International Trade And Transactions,Talent International,204910,"3,196.80",Information Management Services,SME,Programme Expenditure,,
UK Statistics Family,Office for National Statistics,01/07/2021,Exp - Purchase Of Goods/Services - Contractors,International Trade And Transactions,Talent International,204910,"5,040.00",Information Management Services,SME,Programme Expenditure,,
UK Statistics Family,Office for National Statistics,01/07/2021,Exp - Short-Term Contract & Agency Staff - Full Cost,Data Architecture,Talent International,204910,"3,687.40",Information Management Services,SME,Programme Expenditure,,
UK Statistics Family,Office for National Statistics,01/07/2021,Exp - Purchase Of Goods/Services - Contractors,Tech Delivery Next Gen IT And Infrastructure,Talent International,204910,"27,359.55",Information Management Services,SME,Programme Expenditure,,
UK Statistics Family,Office for National Statistics,01/07/2021,Exp - Purchase Of Goods/Services - Contractors,Business Architecture,Parity Resources Limited,204913,"14,155.02",Information Management Services,Large,Programme Expenditure,,
UK Statistics Family,Office for National Statistics,01/07/2021,Exp - Short-Term Contract & Agency Staff - Full Cost,Census CCS Data Collection,Parity Resources Limited,204913,700.92,Information Management Services,Large,Programme Expenditure,,
UK Statistics Family,Office for National Statistics,01/07/2021,Exp - Purchase Of Goods/Services - Contractors,Programme Delivery,Parity Resources Limited,204913,"3,310.50",Information Management Services,Large,Programme Expenditure,,
UK Statistics Family,Office for National Statistics,01/07/2021,Exp - Purchase Of Goods/Services - Contractors,Programme Support,Parity Resources Limited,204913,"2,993.80",Information Management Services,Large,Programme Expenditure,,
UK Statistics Family,Office for National Statistics,01/07/2021,Exp - Purchase Of Goods/Services - Contractors,Covid Infection Survey,Parity Resources Limited,204913,"3,000.00",Information Management Services,Large,Programme Expenditure,,
UK Statistics Family,Office for National Statistics,01/07/2021,Exp - Purchase Of Goods/Services - Contractors,Digital Publishing,Parity Resources Limited,204913,"3,490.20",Information Management Services,Large,Programme Expenditure,,
UK Statistics Family,Office for National Statistics,01/07/2021,Exp - Purchase Of Goods/Services - Contractors,Analysis Microdata And Engagement,Parity Resources Limited,204913,"1,317.00",Information Management Services,Large,Programme Expenditure,,
UK Statistics Family,Office for National Statistics,01/07/2021,Exp - Short-Term Contract & Agency Staff - Full Cost,Business Architecture Transformation And Statistical Strategy,Parity Resources Limited,204913,"2,051.28",Information Management Services,Large,Programme Expenditure,,
UK Statistics Family,Office for National Statistics,01/07/2021,Exp - Short-Term Contract & Agency Staff - Full Cost,Recruitment ,Parity Resources Limited,204913,732.60,Information Management Services,Large,Programme Expenditure,,
UK Statistics Family,Office for National Statistics,01/07/2021,Exp - Short-Term Contract & Agency Staff - Full Cost,Recruitment ,Parity Resources Limited,204913,"1,465.20",Information Management Services,Large,Programme Expenditure,,
UK Statistics Family,Office for National Statistics,01/07/2021,Exp - Short-Term Contract & Agency Staff - Full Cost,Data Architecture,Parity Resources Limited,204913,"1,465.20",Information Management Services,Large,Programme Expenditure,,
UK Statistics Family,Office for National Statistics,01/07/2021,Exp - Purchase Of Goods/Services - Contractors,Data Architecture,Parity Resources Limited,204913,"2,155.54",Information Management Services,Large,Programme Expenditure,,
UK Statistics Family,Office for National Statistics,01/07/2021,Exp - Purchase Of Goods/Services - Contractors,Digital Delivery,Parity Resources Limited,204913,"3,430.50",Information Management Services,Large,Programme Expenditure,,
UK Statistics Family,Office for National Statistics,01/07/2021,Exp - Short-Term Contract & Agency Staff - Full Cost,Survey Processing Centre,Parity Resources Limited,204913,732.60,Information Management Services,Large,Programme Expenditure,,
UK Statistics Family,Office for National Statistics,01/07/2021,Exp - Short-Term Contract & Agency Staff - Full Cost,Social Survey Transformation Titchfield,Parity Resources Limited,204913,169.92,Information Management Services,Large,Programme Expenditure,,
UK Statistics Family,Office for National Statistics,01/07/2021,Exp - Purchase Of Goods/Services - Contractors,Business Architecture,LA FOSSE ASSOCIATES LIMITED,204914,"28,484.94",Information Management Services,Large,Programme Expenditure,,
UK Statistics Family,Office for National Statistics,01/07/2021,Exp - Purchase Of Goods/Services - Contractors,Business Architecture,LA FOSSE ASSOCIATES LIMITED,204914,"6,375.00",Information Management Services,Large,Programme Expenditure,,
UK Statistics Family,Office for National Statistics,01/07/2021,Exp - Purchase Of Goods/Services - Contractors,Testing,LA FOSSE ASSOCIATES LIMITED,204914,"3,000.00",Information Management Services,Large,Programme Expenditure,,
UK Statistics Family,Office for National Statistics,01/07/2021,Exp - Purchase Of Goods/Services - Contractors,Consultancy Management,LA FOSSE ASSOCIATES LIMITED,204914,5160,Information Management Services,Large,Programme Expenditure,,
UK Statistics Family,Office for National Statistics,01/07/2021,Exp - Purchase Of Goods/Services - Contractors,WIDER SURVEILLANCE STUDIES,LA FOSSE ASSOCIATES LIMITED,204914,"2,400.00",Information Management Services,Large,Programme Expenditure,,
UK Statistics Family,Office for National Statistics,01/07/2021,Exp - Purchase Of Goods/Services - Contractors,Data Architecture,LA FOSSE ASSOCIATES LIMITED,204914,"7,500.00",Information Management Services,Large,Programme Expenditure,,
UK Statistics Family,Office for National Statistics,01/07/2021,Exp - Purchase Of Goods/Services - Contractors,Data As A Service,LA FOSSE ASSOCIATES LIMITED,204914,"3,600.00",Information Management Services,Large,Programme Expenditure,,
UK Statistics Family,Office for National Statistics,01/07/2021,Exp - Purchase Of Goods/Services - Contractors,Census Planning And Monitoring,SmartSourcing Ltd,204915,"15,838.06",Information Management Services,SME,Programme Expenditure,,
UK Statistics Family,Office for National Statistics,01/07/2021,Exp - Purchase Of Goods/Services - Contractors,Programme Support,SmartSourcing Ltd,204915,"10,338.48",Information Management Services,SME,Programme Expenditure,,
UK Statistics Family,Office for National Statistics,01/07/2021,Exp - Purchase Of Goods/Services - IT Contractual Services,CLOUD ARCHITECTURE,SmartSourcing Ltd,204915,"2,912.98",Information Management Services,SME,Programme Expenditure,,
UK Statistics Family,Office for National Statistics,01/07/2021,Exp - Purchase Of Goods/Services - Contractors,IT Applications,SmartSourcing Ltd,204915,"3,596.16",Information Management Services,SME,Programme Expenditure,,
UK Statistics Family,Office for National Statistics,01/07/2021,Exp - Purchase Of Goods/Services - Contractors ,IT Applications,SmartSourcing Ltd,204915,719.23,Information Management Services,SME,Programme Expenditure,,
UK Statistics Family,Office for National Statistics,01/07/2021,Exp - Short-Term Contract & Agency Staff - Full Cost,Interviewer Management TU,SmartSourcing Ltd,204915,451.79,Information Management Services,SME,Programme Expenditure,,
UK Statistics Family,Office for National Statistics,01/07/2021,Non IT Maintenance And Hire,Digital Delivery,Hewlett Packard International Bank DAC,204917,"435,743.75",Leasing of Devices,SME,Programme Expenditure,,
UK Statistics Family,Office for National Statistics,02/07/2021,Exp - Purchase Of Goods/Services - Incentive Payments,Survey Management,Park Retail Ltd,205055,"27,032.09",Survey Response Incentive Vouchers,Large,Programme Expenditure,,
UK Statistics Family,Office for National Statistics,02/07/2021,EXP - PURCHASE OF GOODS/SERVICES -  NON IT CONTRACTUAL PAYMENTS,Covid Infection Survey,HH Associates Ltd,205062,"61,029.61",Print and Post Services,SME,Programme Expenditure,,
UK Statistics Family,Office for National Statistics,05/07/2021,Surveys,Strategy And Engagement,Iff Research,205163,"35,152.50",Statistical Services,Large,Programme Expenditure,,
UK Statistics Family,Office for National Statistics,05/07/2021,Exp - Purchase Of Goods/Services - Contractors,Business Architecture,Talent International,205166,"10,966.51",Information Management Services,SME,Programme Expenditure,,
UK Statistics Family,Office for National Statistics,05/07/2021,Exp - Purchase Of Goods/Services - Contractors,Business Architecture,Talent International,205166,"7,627.50",Information Management Services,SME,Programme Expenditure,,
UK Statistics Family,Office for National Statistics,05/07/2021,Exp - Short-Term Contract & Agency Staff - Full Cost,Census CCS Data Collection,Talent International,205166,"9,828.72",Information Management Services,SME,Programme Expenditure,,
UK Statistics Family,Office for National Statistics,05/07/2021,Exp - Short-Term Contract & Agency Staff - Full Cost,Census CCS Data Collection,Talent International,205166,"1,522.79",Information Management Services,SME,Programme Expenditure,,
UK Statistics Family,Office for National Statistics,05/07/2021,Exp - Short-Term Contract & Agency Staff - Full Cost,Covid Infection Survey,Talent International,205166,"2,450.07",Information Management Services,SME,Programme Expenditure,,
UK Statistics Family,Office for National Statistics,05/07/2021,Exp - Purchase Of Goods/Services - Contractors,Covid Infection Survey,Talent International,205166,"2,995.00",Information Management Services,SME,Programme Expenditure,,
UK Statistics Family,Office for National Statistics,05/07/2021,Exp - Short-Term Contract & Agency Staff - Full Cost,HALE,Talent International,205166,"2,504.90",Information Management Services,SME,Programme Expenditure,,
UK Statistics Family,Office for National Statistics,05/07/2021,Exp - Purchase Of Goods/Services - Contractors,Finance,Talent International,205166,"11,880.00",Information Management Services,SME,Programme Expenditure,,
UK Statistics Family,Office for National Statistics,05/07/2021,Exp - Short-Term Contract & Agency Staff - Full Cost,Data Architecture,Talent International,205166,"3,687.40",Information Management Services,SME,Programme Expenditure,,
UK Statistics Family,Office for National Statistics,05/07/2021,Exp - Purchase Of Goods/Services - Contractors,Data Architecture,Talent International,205166,"39,924.00",Information Management Services,SME,Programme Expenditure,,
UK Statistics Family,Office for National Statistics,05/07/2021,Exp - Purchase Of Goods/Services - Contractors,Data Architecture,Talent International,205166,"13,657.20",Information Management Services,SME,Programme Expenditure,,
UK Statistics Family,Office for National Statistics,05/07/2021,Exp - Purchase Of Goods/Services - Contractors,CLOUD ARCHITECTURE,Talent International,205166,"25,379.77",Information Management Services,SME,Programme Expenditure,,
UK Statistics Family,Office for National Statistics,05/07/2021,Exp - Purchase Of Goods/Services - Contractors,CDIO UNGP,Talent International,205166,"10,920.00",Information Management Services,SME,Programme Expenditure,,
UK Statistics Family,Office for National Statistics,05/07/2021,Exp - Purchase Of Goods/Services - Contractors,Tech Delivery Legacy Sp,Talent International,205166,"12,599.80",Information Management Services,SME,Programme Expenditure,,
UK Statistics Family,Office for National Statistics,05/07/2021,Exp - Purchase Of Goods/Services - Contractors,Tech Delivery Data As A Platform,Talent International,205166,"13,679.77",Information Management Services,SME,Programme Expenditure,,
UK Statistics Family,Office for National Statistics,05/07/2021,Exp - Purchase Of Goods/Services - Contractors,Digital Delivery,Talent International,205166,"11,491.20",Information Management Services,SME,Programme Expenditure,,
UK Statistics Family,Office for National Statistics,05/07/2021,Exp - Short-Term Contract & Agency Staff - Full Cost,Social Surveys Division,Talent International,205166,"3,928.31",Information Management Services,SME,Programme Expenditure,,
UK Statistics Family,Office for National Statistics,05/07/2021,Exp - Purchase Of Goods/Services - Incentive Payments,Covid Infection Survey,Sodexo Motivation Solutions U.K. ltd,205168,"45,729.28",Survey Response Incentive Vouchers,Large,Programme Expenditure,,
UK Statistics Family,Office for National Statistics,05/07/2021,Marketing & Media,Stakeholder Engagement And Comms,M&C Saatchi UK Ltd,205171,"82,807.86",Marketing Services,Large,Programme Expenditure,,
UK Statistics Family,Office for National Statistics,05/07/2021,IT (Owned) At Cost - Additions,IT Operations,Insight Direct,205172,"-5,001.54",Software Licenses,Large,Programme Expenditure,,
UK Statistics Family,Office for National Statistics,05/07/2021,End User Software And Hardware,IT Operations,Insight Direct,205172,37670.76,Software Licenses,Large,Programme Expenditure,,
UK Statistics Family,Office for National Statistics,05/07/2021,Non IT Maintenance And Hire,Digital Delivery,Hewlett Packard International Bank DAC,205173,"1,562,924.12",Leasing of Devices,SME,Programme Expenditure,,
UK Statistics Family,Office for National Statistics,06/07/2021,Exp - Purchase Of Goods/Services - Training & Development - Seminar & Conference Fees,Programme Delivery,Oxford Said Business School,205179,"25,000.00",Training and Educational Services,SME,Programme Expenditure,,
UK Statistics Family,Office for National Statistics,06/07/2021,Exp - Purchase Of Goods And Services Consultants,Productivity Research And Professional Development,Niesr,205180,"307,576.80",Statistical Services,SME,Programme Expenditure,,
UK Statistics Family,Office for National Statistics,06/07/2021,Exp - Purchase Of Goods/Services - Contractors,2023 CENSUS DATA TRANSFORMATION,Talent International,205187,"3,996.34",Information Management Services,SME,Programme Expenditure,,
UK Statistics Family,Office for National Statistics,06/07/2021,Exp - Short-Term Contract & Agency Staff - Full Cost,Census CCS Data Collection,Talent International,205187,"2,860.05",Information Management Services,SME,Programme Expenditure,,
UK Statistics Family,Office for National Statistics,06/07/2021,Exp - Short-Term Contract & Agency Staff - Full Cost,HALE,Talent International,205187,"2,634.40",Information Management Services,SME,Programme Expenditure,,
UK Statistics Family,Office for National Statistics,06/07/2021,Exp - Short-Term Contract & Agency Staff - Full Cost,Strategy And Engagement,Talent International,205187,"1,483.14",Information Management Services,SME,Programme Expenditure,,
UK Statistics Family,Office for National Statistics,06/07/2021,Exp - Purchase Of Goods/Services - Contractors,Data Architecture,Talent International,205187,"13,200.00",Information Management Services,SME,Programme Expenditure,,
UK Statistics Family,Office for National Statistics,06/07/2021,Exp - Purchase Of Goods/Services - Contractors,Strategy And Architecture,Talent International,205187,"27,000.00",Information Management Services,SME,Programme Expenditure,,
UK Statistics Family,Office for National Statistics,06/07/2021,Exp - Purchase Of Goods/Services - Contractors,IT Applications,Talent International,205187,"13,679.77",Information Management Services,SME,Programme Expenditure,,
UK Statistics Family,Office for National Statistics,06/07/2021,Exp - Short-Term Contract & Agency Staff - Full Cost,Survey Processing Centre,Talent International,205187,"2,192.52",Information Management Services,SME,Programme Expenditure,,
UK Statistics Family,Office for National Statistics,06/07/2021,Exp - Short-Term Contract & Agency Staff - Full Cost,Interviewer Management TU,Talent International,205187,481.69,Information Management Services,SME,Programme Expenditure,,
UK Statistics Family,Office for National Statistics,06/07/2021,Exp - Purchase Of Goods/Services - Contractors,Business Architecture,LA FOSSE ASSOCIATES LIMITED,205191,"24,305.00",Information Management Services,Large,Programme Expenditure,,
UK Statistics Family,Office for National Statistics,06/07/2021,Exp - Purchase Of Goods/Services - Contractors,Business Architecture,LA FOSSE ASSOCIATES LIMITED,205191,"3,625.00",Information Management Services,Large,Programme Expenditure,,
UK Statistics Family,Office for National Statistics,06/07/2021,Exp - Purchase Of Goods/Services - Contractors,Testing,LA FOSSE ASSOCIATES LIMITED,205191,"3,000.00",Information Management Services,Large,Programme Expenditure,,
UK Statistics Family,Office for National Statistics,06/07/2021,Exp - Purchase Of Goods/Services - Contractors,Consultancy Management,LA FOSSE ASSOCIATES LIMITED,205191,"6,450.00",Information Management Services,Large,Programme Expenditure,,
UK Statistics Family,Office for National Statistics,06/07/2021,Exp - Purchase Of Goods/Services - Contractors,Data Architecture,LA FOSSE ASSOCIATES LIMITED,205191,"7,500.00",Information Management Services,Large,Programme Expenditure,,
UK Statistics Family,Office for National Statistics,06/07/2021,Exp - Purchase Of Goods/Services - Contractors,Tech Delivery Legacy Sp,LA FOSSE ASSOCIATES LIMITED,205191,"3,600.00",Information Management Services,Large,Programme Expenditure,,
UK Statistics Family,Office for National Statistics,08/07/2021,End User Software And Hardware,Strategy And Architecture,Scc,205350,42419.52,Software Licenses,Large,Programme Expenditure,,
UK Statistics Family,Office for National Statistics,08/07/2021,End User Software And Hardware,IT Operations,Scc,205350,"4,440.00",Software Licenses,Large,Programme Expenditure,,
UK Statistics Family,Office for National Statistics,08/07/2021,Exp - Purchase Of Goods/Services - Contractors,Census CCS Data Collection,Hmrc,205354,62973.28,Temporary Staff,Large,Programme Expenditure,,
UK Statistics Family,Office for National Statistics,08/07/2021,Exp - Purchase Of Goods/Services - Contractors,Tech Delivery Legacy Sp,La International,205356,17044.6,Information Management Services,SME,Programme Expenditure,,
UK Statistics Family,Office for National Statistics,08/07/2021,Exp - Purchase Of Goods/Services - Contractors,Tech Delivery Legacy Sp,La International,205356,"13,392.04",Information Management Services,SME,Programme Expenditure,,
UK Statistics Family,Office for National Statistics,08/07/2021,Exp - Purchase Of Goods/Services - Contractors,Tech Delivery Data As A Platform,La International,205356,"2,870.64",Information Management Services,SME,Programme Expenditure,,
UK Statistics Family,Office for National Statistics,08/07/2021,Exp - Purchase Of Goods/Services - Contractors,IT Applications,La International,205356,"5,190.26",Information Management Services,SME,Programme Expenditure,,
UK Statistics Family,Office for National Statistics,08/07/2021,Exp - Purchase Of Goods/Services - Contractors,Digital Delivery,La International,205356,"10,054.80",Information Management Services,SME,Programme Expenditure,,
UK Statistics Family,Office for National Statistics,08/07/2021,Stationery,Lodgecard,Royal Bank of Scotland,205358,"1,276.05",Multiple Procurement Card Purchases  - Stationery ,Large,Programme Expenditure,,
UK Statistics Family,Office for National Statistics,08/07/2021,Other Goods And Services,GPC,Royal Bank of Scotland,205358,"60,290.54",Multiple Procurement Card Purchases - other goods/services  ,Large,Programme Expenditure,,
UK Statistics Family,Office for National Statistics,08/07/2021,"ICT Outsourcing, Maintenance And Support",IT Operations,CTS (Cloud Technology Solutions Ltd),205369,"34,457.66",DST Infrastructure Preparation,Large,Programme Expenditure,,
UK Statistics Family,Office for National Statistics,08/07/2021,EXP - PURCHASE OF GOODS/SERVICES -  NON IT CONTRACTUAL PAYMENTS,Covid Infection Survey,HH Associates Ltd,205370,121535.48,Print and Post Services,SME,Programme Expenditure,,
UK Statistics Family,Office for National Statistics,08/07/2021,Marketing & Media,Stakeholder Engagement And Comms,Manning Gottlieb,205374,"539,756.99",Marketing Services,Large,Programme Expenditure,,
UK Statistics Family,Office for National Statistics,08/07/2021,Exp - Short-Term Contract & Agency Staff - Full Cost,Census CCS Data Collection,Talent International,205376,498.30,Information Management Services,SME,Programme Expenditure,,
UK Statistics Family,Office for National Statistics,08/07/2021,Exp - Short-Term Contract & Agency Staff - Full Cost,Operations,Talent International,205376,"4,860.00",Information Management Services,SME,Programme Expenditure,,
UK Statistics Family,Office for National Statistics,08/07/2021,Exp - Purchase Of Goods/Services - Contractors,Digital Publishing,Talent International,205376,"14,376.00",Information Management Services,SME,Programme Expenditure,,
UK Statistics Family,Office for National Statistics,08/07/2021,Exp - Purchase Of Goods/Services - Contractors,Researcher Support And Data Access ,Talent International,205376,"14,820.00",Information Management Services,SME,Programme Expenditure,,
UK Statistics Family,Office for National Statistics,08/07/2021,Exp - Short-Term Contract & Agency Staff - Full Cost,Recruitment ,Talent International,205376,"2,802.44",Information Management Services,SME,Programme Expenditure,,
UK Statistics Family,Office for National Statistics,08/07/2021,Exp - Purchase Of Goods/Services - Contractors,Tech Delivery Legacy Sp,Talent International,205376,"14,820.00",Information Management Services,SME,Programme Expenditure,,
UK Statistics Family,Office for National Statistics,08/07/2021,Exp - Purchase Of Goods/Services - Contractors,Tech Delivery Next Gen IT And Infrastructure,Talent International,205376,"18,479.77",Information Management Services,SME,Programme Expenditure,,
UK Statistics Family,Office for National Statistics,08/07/2021,Exp - Purchase Of Goods/Services - Contractors,IT Applications,Talent International,205376,"13,260.00",Information Management Services,SME,Programme Expenditure,,
UK Statistics Family,Office for National Statistics,08/07/2021,Exp - Purchase Of Goods/Services - Contractors,Digital Delivery,Talent International,205376,"12,938.40",Information Management Services,SME,Programme Expenditure,,
UK Statistics Family,Office for National Statistics,08/07/2021,Exp - Purchase Of Goods/Services - Contractors,Business Architecture,Parity Resources Limited,205378,"6,597.20",Information Management Services,Large,Programme Expenditure,,
UK Statistics Family,Office for National Statistics,08/07/2021,Exp - Purchase Of Goods/Services - Contractors,Testing,Parity Resources Limited,205378,"13,680.00",Information Management Services,Large,Programme Expenditure,,
UK Statistics Family,Office for National Statistics,08/07/2021,Exp - Short-Term Contract & Agency Staff - Full Cost,Census CCS Data Collection,Parity Resources Limited,205378,746.59,Information Management Services,Large,Programme Expenditure,,
UK Statistics Family,Office for National Statistics,08/07/2021,Exp - Short-Term Contract & Agency Staff - Full Cost,Census CCS Data Collection,Parity Resources Limited,205378,"1,101.88",Information Management Services,Large,Programme Expenditure,,
UK Statistics Family,Office for National Statistics,08/07/2021,Exp - Short-Term Contract & Agency Staff - Full Cost,Census CCS Data Collection,Parity Resources Limited,205378,292.04,Information Management Services,Large,Programme Expenditure,,
UK Statistics Family,Office for National Statistics,08/07/2021,Exp - Purchase Of Goods/Services - Contractors,Programme Delivery,Parity Resources Limited,205378,"2,648.40",Information Management Services,Large,Programme Expenditure,,
UK Statistics Family,Office for National Statistics,08/07/2021,Exp - Purchase Of Goods/Services - Contractors,Programme Support,Parity Resources Limited,205378,"2,993.80",Information Management Services,Large,Programme Expenditure,,
UK Statistics Family,Office for National Statistics,08/07/2021,Exp - Purchase Of Goods/Services - Contractors,Covid Infection Survey,Parity Resources Limited,205378,"3,000.00",Information Management Services,Large,Programme Expenditure,,
UK Statistics Family,Office for National Statistics,08/07/2021,Exp - Purchase Of Goods/Services - Contractors,Digital Publishing,Parity Resources Limited,205378,"3,490.20",Information Management Services,Large,Programme Expenditure,,
UK Statistics Family,Office for National Statistics,08/07/2021,Exp - Purchase Of Goods And Services Consultants,Digital Publishing,Parity Resources Limited,205378,"2,870.78",Information Management Services,Large,Programme Expenditure,,
UK Statistics Family,Office for National Statistics,08/07/2021,Exp - Short-Term Contract & Agency Staff - Full Cost,Business Architecture Transformation And Statistical Strategy,Parity Resources Limited,205378,"3,804.64",Information Management Services,Large,Programme Expenditure,,
UK Statistics Family,Office for National Statistics,08/07/2021,Exp - Short-Term Contract & Agency Staff - Full Cost,Business Architecture Transformation And Statistical Strategy,Parity Resources Limited,205378,732.60,Information Management Services,Large,Programme Expenditure,,
UK Statistics Family,Office for National Statistics,08/07/2021,Exp - Short-Term Contract & Agency Staff - Full Cost,Recruitment ,Parity Resources Limited,205378,732.60,Information Management Services,Large,Programme Expenditure,,
UK Statistics Family,Office for National Statistics,08/07/2021,Exp - Short-Term Contract & Agency Staff - Full Cost,Recruitment ,Parity Resources Limited,205378,732.60,Information Management Services,Large,Programme Expenditure,,
UK Statistics Family,Office for National Statistics,08/07/2021,Exp - Short-Term Contract & Agency Staff - Full Cost,Data Architecture,Parity Resources Limited,205378,"2,930.40",Information Management Services,Large,Programme Expenditure,,
UK Statistics Family,Office for National Statistics,08/07/2021,Exp - Purchase Of Goods/Services - Contractors,Data Architecture,Parity Resources Limited,205378,"3,592.56",Information Management Services,Large,Programme Expenditure,,
UK Statistics Family,Office for National Statistics,08/07/2021,Exp - Purchase Of Goods/Services - Contractors,IT Applications,Parity Resources Limited,205378,"14,949.86",Information Management Services,Large,Programme Expenditure,,
UK Statistics Family,Office for National Statistics,08/07/2021,Exp - Purchase Of Goods/Services - Contractors,Digital Delivery,Parity Resources Limited,205378,"14,353.92",Information Management Services,Large,Programme Expenditure,,
UK Statistics Family,Office for National Statistics,08/07/2021,Exp - Purchase Of Goods/Services - Contractors,Digital Delivery,Parity Resources Limited,205378,"3,430.50",Information Management Services,Large,Programme Expenditure,,
UK Statistics Family,Office for National Statistics,08/07/2021,Exp - Purchase Of Goods/Services - Contractors,Digital Delivery,Parity Resources Limited,205378,"10,765.44",Information Management Services,Large,Programme Expenditure,,
UK Statistics Family,Office for National Statistics,08/07/2021,Exp - Purchase Of Goods/Services - Contractors,Digital Delivery,Parity Resources Limited,205378,"13,636.22",Information Management Services,Large,Programme Expenditure,,
UK Statistics Family,Office for National Statistics,08/07/2021,Exp - Purchase Of Goods/Services - Contractors,Digital Delivery,Parity Resources Limited,205378,"2,723.40",Information Management Services,Large,Programme Expenditure,,
UK Statistics Family,Office for National Statistics,08/07/2021,Exp - Short-Term Contract & Agency Staff - Full Cost,Survey Processing Centre,Parity Resources Limited,205378,386.10,Information Management Services,Large,Programme Expenditure,,
UK Statistics Family,Office for National Statistics,08/07/2021,Exp - Purchase Of Goods/Services - Incentive Payments,Covid Infection Survey,Sodexo Motivation Solutions U.K. ltd,205380,"1,769,670.14",Survey Response Incentive Vouchers,Large,Programme Expenditure,,
UK Statistics Family,Office for National Statistics,08/07/2021,Marketing & Media,Stakeholder Engagement And Comms,M&C Saatchi UK Ltd,205382,"79,435.75",Marketing Services,Large,Programme Expenditure,,
UK Statistics Family,Office for National Statistics,09/07/2021,Exp - Purchase Of Goods/Services - IT Contractual Services,IT Operations,Methods Business & Digital Technology Ltd,205526,"70,200.00",Information Management Services,Large,Programme Expenditure,,
UK Statistics Family,Office for National Statistics,09/07/2021,Exp - Purchase Of Goods And Services Consultants,Business Architecture Transformation And Statistical Strategy,SmartSourcing Ltd,205529,"17,008.31",Information Management Services,SME,Programme Expenditure,,
UK Statistics Family,Office for National Statistics,09/07/2021,Exp - Purchase Of Goods/Services - Contractors,Data Architecture,SmartSourcing Ltd,205529,8580,Information Management Services,SME,Programme Expenditure,,
UK Statistics Family,Office for National Statistics,09/07/2021,Exp - Purchase Of Goods/Services - IT Contractual Services,CLOUD ARCHITECTURE,SmartSourcing Ltd,205529,"9,062.59",Information Management Services,SME,Programme Expenditure,,
UK Statistics Family,Office for National Statistics,09/07/2021,Exp - Purchase Of Goods/Services - Contractors,Tech Delivery Legacy Sp,SmartSourcing Ltd,205529,"12,299.23",Information Management Services,SME,Programme Expenditure,,
UK Statistics Family,Office for National Statistics,09/07/2021,Exp - Short-Term Contract & Agency Staff - Full Cost,Interviewer Management TU,SmartSourcing Ltd,205529,"2,333.72",Information Management Services,SME,Programme Expenditure,,
UK Statistics Family,Office for National Statistics,09/07/2021,Surveys,International Trade And Transactions,Mango Solutions,205535,"15,944.64",Information Management Services,SME,Programme Expenditure,,
UK Statistics Family,Office for National Statistics,09/07/2021,Surveys,International Trade And Transactions,Mango Solutions,205535,"46,128.48",Information Management Services,SME,Programme Expenditure,,
UK Statistics Family,Office for National Statistics,09/07/2021,Exp - Purchase Of Goods/Services - IT Contractual Services,Digital Publishing,Swirrl It Ltd,205536,"71,640.00",Information Management Services,SME,Programme Expenditure,,
UK Statistics Family,Office for National Statistics,09/07/2021,Surveys,Business Outputs And Developments,Iff Research,205549,"162,754.80",Statistical Services,Large,Programme Expenditure,,
UK Statistics Family,Office for National Statistics,12/07/2021,Surveys,Social Surveys Division,Natcen Social Research,205625,"40,254.92",Statistical Services,Large,Programme Expenditure,,
UK Statistics Family,Office for National Statistics,12/07/2021,Postage,Survey Processing Centre,DHL Parcel Ltd,205635,"26,623.00",Postage,Large,Programme Expenditure,,
UK Statistics Family,Office for National Statistics,12/07/2021,EXP - PURCHASE OF GOODS/SERVICES -  NON IT CONTRACTUAL PAYMENTS,Data Collection Service,HH Associates Ltd,205640,"37,408.79",Print and Post Services,SME,Programme Expenditure,,
UK Statistics Family,Office for National Statistics,12/07/2021,Hosting,Learning And Capability,Synergy Learning,205641,"40,860.00",Software Licenses,Small,Programme Expenditure,,
UK Statistics Family,Office for National Statistics,12/07/2021,Exp - Purchase Of Goods/Services - Incentive Payments,Survey Management,Sodexo Motivation Solutions U.K. ltd,205643,"24,044.80",Survey Response Incentive Vouchers,Large,Programme Expenditure,,
UK Statistics Family,Office for National Statistics,12/07/2021,Exp - Purchase Of Goods/Services - Incentive Payments,Survey Management,Sodexo Motivation Solutions U.K. ltd,205643,5549.2,Survey Response Incentive Vouchers,Large,Programme Expenditure,,
UK Statistics Family,Office for National Statistics,12/07/2021,Exp - Purchase Of Goods/Services - Incentive Payments,Survey Management,Sodexo Motivation Solutions U.K. ltd,205643,"2,448.60",Survey Response Incentive Vouchers,Large,Programme Expenditure,,
UK Statistics Family,Office for National Statistics,12/07/2021,Exp - Purchase Of Goods/Services - Incentive Payments,Survey Management,Sodexo Motivation Solutions U.K. ltd,205643,"2,862.00",Survey Response Incentive Vouchers,Large,Programme Expenditure,,Karla to confirm what his is 
UK Statistics Family,Office for National Statistics,12/07/2021,Exp - Purchase Of Goods/Services - Incentive Payments,Survey Management,Sodexo Motivation Solutions U.K. ltd,205643,"119,369.20",Survey Response Incentive Vouchers,Large,Programme Expenditure,,
UK Statistics Family,Office for National Statistics,12/07/2021,Exp - Purchase Of Goods/Services - Incentive Payments,Social Survey Transformation Newport,Sodexo Motivation Solutions U.K. ltd,205643,"66,297.00",Survey Response Incentive Vouchers,Large,Programme Expenditure,,
UK Statistics Family,Office for National Statistics,12/07/2021,Exp - Purchase Of Goods/Services - Contractors,Business Architecture,LA FOSSE ASSOCIATES LIMITED,205644,"24,165.00",Information Management Services,Large,Programme Expenditure,,
UK Statistics Family,Office for National Statistics,12/07/2021,Exp - Purchase Of Goods/Services - Contractors,Business Architecture,LA FOSSE ASSOCIATES LIMITED,205644,"6,375.00",Information Management Services,Large,Programme Expenditure,,
UK Statistics Family,Office for National Statistics,12/07/2021,Exp - Purchase Of Goods/Services - Contractors,Testing,LA FOSSE ASSOCIATES LIMITED,205644,"3,000.00",Information Management Services,Large,Programme Expenditure,,
UK Statistics Family,Office for National Statistics,12/07/2021,Exp - Purchase Of Goods/Services - Contractors,Consultancy Management,LA FOSSE ASSOCIATES LIMITED,205644,"6,450.00",Information Management Services,Large,Programme Expenditure,,
UK Statistics Family,Office for National Statistics,13/07/2021,Exp - Short-Term Contract & Agency Staff - Full Cost,Covid Infection Survey,Concept Information Technology Ltd T/A Concept Resourcing,205647,"4,795.26",Information Management Services,Large,Programme Expenditure,,
UK Statistics Family,Office for National Statistics,13/07/2021,Exp - Short-Term Contract & Agency Staff - Full Cost,Covid Infection Survey,Concept Information Technology Ltd T/A Concept Resourcing,205647,"3,190.21",Information Management Services,Large,Programme Expenditure,,
UK Statistics Family,Office for National Statistics,13/07/2021,Exp - Short-Term Contract & Agency Staff - Full Cost,Covid Infection Survey,Concept Information Technology Ltd T/A Concept Resourcing,205647,"6,783.85",Information Management Services,Large,Programme Expenditure,,
UK Statistics Family,Office for National Statistics,13/07/2021,Exp - Short-Term Contract & Agency Staff - Full Cost,Business Change Support,Concept Information Technology Ltd T/A Concept Resourcing,205647,"3,828.25",Information Management Services,Large,Programme Expenditure,,
UK Statistics Family,Office for National Statistics,13/07/2021,Exp - Short-Term Contract & Agency Staff - Full Cost,Business Change Support,Concept Information Technology Ltd T/A Concept Resourcing,205647,"3,828.25",Information Management Services,Large,Programme Expenditure,,
UK Statistics Family,Office for National Statistics,13/07/2021,Exp - Purchase Of Goods/Services - Contractors,Census & Soc Methodology Dd,Concept Information Technology Ltd T/A Concept Resourcing,205647,"6,138.00",Information Management Services,Large,Programme Expenditure,,
UK Statistics Family,Office for National Statistics,13/07/2021,Exp - Short-Term Contract & Agency Staff - Full Cost,Data Architecture,Concept Information Technology Ltd T/A Concept Resourcing,205647,"2,802.44",Information Management Services,Large,Programme Expenditure,,
UK Statistics Family,Office for National Statistics,13/07/2021,Exp - Purchase Of Goods/Services - Contractors,CLOUD ARCHITECTURE,Concept Information Technology Ltd T/A Concept Resourcing,205647,"10,812.00",Information Management Services,Large,Programme Expenditure,,
UK Statistics Family,Office for National Statistics,13/07/2021,Exp - Purchase Of Goods/Services - IT Contractual Services,CDIO UNGP,Concept Information Technology Ltd T/A Concept Resourcing,205647,"13,680.00",Information Management Services,Large,Programme Expenditure,,
UK Statistics Family,Office for National Statistics,13/07/2021,Exp - Short-Term Contract & Agency Staff - Full Cost,Prices Division,Concept Information Technology Ltd T/A Concept Resourcing,205647,"3,828.25",Information Management Services,Large,Programme Expenditure,,
UK Statistics Family,Office for National Statistics,13/07/2021,Exp - Short-Term Contract & Agency Staff - Full Cost,Prices Division,Concept Information Technology Ltd T/A Concept Resourcing,205647,"11,484.75",Information Management Services,Large,Programme Expenditure,,
UK Statistics Family,Office for National Statistics,13/07/2021,Exp - Short-Term Contract & Agency Staff - Full Cost,Business Outputs And Developments,Concept Information Technology Ltd T/A Concept Resourcing,205647,"2,820.82",Information Management Services,Large,Programme Expenditure,,
UK Statistics Family,Office for National Statistics,13/07/2021,Exp - Purchase Of Goods/Services - IT Contractual Services,CENSUS PARTNERSHIPS AND ENGAGEMENT,Xma Limited,205652,"25,567.39",Costs Associated with Mobile Devices,Large,Programme Expenditure,,
UK Statistics Family,Office for National Statistics,13/07/2021,Exp - Purchase Of Goods And Services Consultants,Digital Delivery,Xma Limited,205652,"16,538.10",Costs Associated with Mobile Devices,Large,Programme Expenditure,,
UK Statistics Family,Office for National Statistics,13/07/2021,Exp - Purchase Of Goods/Services - IT Contractual Services,Digital Delivery,Xma Limited,205652,"505,465.86",Costs Associated with Mobile Devices,Large,Programme Expenditure,,
UK Statistics Family,Office for National Statistics,13/07/2021,Surveys,Social Surveys Division,Nisra,205654,"102,768.10",Statistical Services,Large,Programme Expenditure,,
UK Statistics Family,Office for National Statistics,13/07/2021,Exp - Purchase Of Goods/Services - Contractors,Business Architecture,La International,205656,"5,280.01",Information Management Services,SME,Programme Expenditure,,
UK Statistics Family,Office for National Statistics,13/07/2021,Exp - Purchase Of Goods/Services - Contractors,Business Architecture,La International,205656,"7,176.60",Information Management Services,SME,Programme Expenditure,,
UK Statistics Family,Office for National Statistics,13/07/2021,Exp - Purchase Of Goods/Services - Contractors,Testing,La International,205656,27809.33,Information Management Services,SME,Programme Expenditure,,
UK Statistics Family,Office for National Statistics,13/07/2021,Exp - Purchase Of Goods/Services - Contractors,Testing,La International,205656,7475.65,Information Management Services,SME,Programme Expenditure,,
UK Statistics Family,Office for National Statistics,13/07/2021,Exp - Purchase Of Goods/Services - Contractors,HALE,La International,205656,"4,827.50",Information Management Services,SME,Programme Expenditure,,
UK Statistics Family,Office for National Statistics,13/07/2021,Exp - Purchase Of Goods/Services - Contractors,Security Operations,La International,205656,"9,611.64",Information Management Services,SME,Programme Expenditure,,
UK Statistics Family,Office for National Statistics,13/07/2021,Exp - Purchase Of Goods/Services - Contractors,Data Architecture,La International,205656,"3,524.22",Information Management Services,SME,Programme Expenditure,,
UK Statistics Family,Office for National Statistics,13/07/2021,Exp - Purchase Of Goods/Services - Contractors,Data Architecture,La International,205656,"14,161.02",Information Management Services,SME,Programme Expenditure,,
UK Statistics Family,Office for National Statistics,13/07/2021,Exp - Purchase Of Goods/Services - Contractors,Data Architecture,La International,205656,"3,524.22",Information Management Services,SME,Programme Expenditure,,
UK Statistics Family,Office for National Statistics,13/07/2021,Exp - Purchase Of Goods/Services - Contractors,CLOUD ARCHITECTURE,La International,205656,"3,844.62",Information Management Services,SME,Programme Expenditure,,
UK Statistics Family,Office for National Statistics,13/07/2021,Exp - Purchase Of Goods/Services - Contractors,Tech Delivery Data As A Platform,La International,205656,"2,883.49",Information Management Services,SME,Programme Expenditure,,
UK Statistics Family,Office for National Statistics,13/07/2021,Exp - Purchase Of Goods/Services - Contractors,Tech Delivery Data As A Platform,La International,205656,"14,353.20",Information Management Services,SME,Programme Expenditure,,
UK Statistics Family,Office for National Statistics,13/07/2021,Exp - Purchase Of Goods/Services - Contractors,Tech Delivery Data As A Platform,La International,205656,"7,176.60",Information Management Services,SME,Programme Expenditure,,
UK Statistics Family,Office for National Statistics,13/07/2021,Exp - Purchase Of Goods/Services - Contractors,Tech Delivery Next Gen IT And Infrastructure,La International,205656,"9,611.64",Information Management Services,SME,Programme Expenditure,,
UK Statistics Family,Office for National Statistics,13/07/2021,Exp - Purchase Of Goods/Services - Contractors,Digital Delivery,La International,205656,"17,044.60",Information Management Services,SME,Programme Expenditure,,
UK Statistics Family,Office for National Statistics,13/07/2021,Exp - Purchase Of Goods/Services - Contractors,Digital Delivery,La International,205656,"14,609.56",Information Management Services,SME,Programme Expenditure,,
UK Statistics Family,Office for National Statistics,13/07/2021,Exp - Purchase Of Goods/Services - Contractors,Digital Delivery,La International,205656,"13,635.54",Information Management Services,SME,Programme Expenditure,,
UK Statistics Family,Office for National Statistics,13/07/2021,Exp - Purchase Of Goods/Services - Contractors,Digital Delivery,La International,205656,"15,788.54",Information Management Services,SME,Programme Expenditure,,
UK Statistics Family,Office for National Statistics,13/07/2021,Exp - Short-Term Contract & Agency Staff - Full Cost,Social Survey Transformation Titchfield,La International,205656,913.50,Information Management Services,SME,Programme Expenditure,,
UK Statistics Family,Office for National Statistics,13/07/2021,Exp - Short-Term Contract & Agency Staff - Full Cost,Stakeholder Engagement And Comms,Malikshaw Interim & Executive,205657,"4,747.63",Information Management Services,SME,Programme Expenditure,,
UK Statistics Family,Office for National Statistics,13/07/2021,Exp - Purchase Of Goods/Services - Contractors,Business Architecture,Malikshaw Interim & Executive,205657,"12,055.56",Information Management Services,SME,Programme Expenditure,,
UK Statistics Family,Office for National Statistics,13/07/2021,Exp - Short-Term Contract & Agency Staff - Full Cost,Census CCS Data Collection,Malikshaw Interim & Executive,205657,"9,711.45",Information Management Services,SME,Programme Expenditure,,
UK Statistics Family,Office for National Statistics,13/07/2021,Exp - Short-Term Contract & Agency Staff - Full Cost,Covid Infection Survey,Malikshaw Interim & Executive,205657,359.70,Information Management Services,SME,Programme Expenditure,,
UK Statistics Family,Office for National Statistics,13/07/2021,Exp - Short-Term Contract & Agency Staff - Full Cost,MDR Management,Malikshaw Interim & Executive,205657,"4,884.00",Information Management Services,SME,Programme Expenditure,,
UK Statistics Family,Office for National Statistics,13/07/2021,Exp - Purchase Of Goods/Services - Contractors,Data Architecture,Malikshaw Interim & Executive,205657,15840,Information Management Services,SME,Programme Expenditure,,
UK Statistics Family,Office for National Statistics,13/07/2021,Exp - Purchase Of Goods/Services - Contractors,Strategy And Architecture,Malikshaw Interim & Executive,205657,"44,348.65",Information Management Services,SME,Programme Expenditure,,
UK Statistics Family,Office for National Statistics,13/07/2021,Exp - Purchase Of Goods/Services - Contractors,Tech Delivery Legacy Sp,Malikshaw Interim & Executive,205657,"15,126.67",Information Management Services,SME,Programme Expenditure,,
UK Statistics Family,Office for National Statistics,13/07/2021,Exp - Purchase Of Goods/Services - Contractors,Digital Delivery,Malikshaw Interim & Executive,205657,"15,126.67",Information Management Services,SME,Programme Expenditure,,
UK Statistics Family,Office for National Statistics,13/07/2021,Exp - Purchase Of Goods/Services - Contractors,Digital Delivery,Malikshaw Interim & Executive,205657,"3,437.88",Information Management Services,SME,Programme Expenditure,,
UK Statistics Family,Office for National Statistics,13/07/2021,EXP - PURCHASE OF GOODS/SERVICES -  NON IT CONTRACTUAL PAYMENTS,Data Collection Service,Leidos Innovations UK Limited,205658,"3,932,395.91",Questionnaire Management,Large,Programme Expenditure,,
UK Statistics Family,Office for National Statistics,13/07/2021,EXP - PURCHASE OF GOODS/SERVICES -  NON IT CONTRACTUAL PAYMENTS,Covid Infection Survey,HH Associates Ltd,205659,66260.8,Print and Post Services,SME,Programme Expenditure,,
UK Statistics Family,Office for National Statistics,13/07/2021,EXP - PURCHASE OF GOODS/SERVICES -  NON IT CONTRACTUAL PAYMENTS,Census CCS Data Collection,Adecco UK Limited,205660,"230,438.40",Census People Services Contractual,SME,Programme Expenditure,,
UK Statistics Family,Office for National Statistics,13/07/2021,Other Professional Services,Policy Secretariat,Government Legal Department,205661,"26,434.38",Professional Legal Fees,Large,Programme Expenditure,,
UK Statistics Family,Office for National Statistics,13/07/2021,Other Professional Services,Policy Secretariat,Government Legal Department,205661,"4,069.74",Professional Legal Fees,Large,Programme Expenditure,,
UK Statistics Family,Office for National Statistics,13/07/2021,Other Professional Services,Policy Secretariat,Government Legal Department,205661,907.20,Professional Legal Fees,Large,Programme Expenditure,,
UK Statistics Family,Office for National Statistics,13/07/2021,Exp - Purchase Of Goods/Services - Contractors,Testing,Parity Resources Limited,205663,"10,316.88",Information Management Services,Large,Programme Expenditure,,
UK Statistics Family,Office for National Statistics,13/07/2021,Exp - Purchase Of Goods/Services - Contractors,Census CCS Data Collection,Parity Resources Limited,205663,"9,900.00",Information Management Services,Large,Programme Expenditure,,
UK Statistics Family,Office for National Statistics,13/07/2021,Exp - Purchase Of Goods/Services - Contractors,Security Advisory,Parity Resources Limited,205663,"23,120.06",Information Management Services,Large,Programme Expenditure,,
UK Statistics Family,Office for National Statistics,14/07/2021,Exp - Short-Term Contract & Agency Staff - Full Cost,Stakeholder Engagement And Comms,Concept Information Technology Ltd T/A Concept Resourcing,205675,"7,532.31",Information Management Services,Large,Programme Expenditure,,
UK Statistics Family,Office for National Statistics,14/07/2021,Exp - Purchase Of Goods/Services - Contractors,Testing,Concept Information Technology Ltd T/A Concept Resourcing,205675,"10,450.00",Information Management Services,Large,Programme Expenditure,,
UK Statistics Family,Office for National Statistics,14/07/2021,Exp - Short-Term Contract & Agency Staff - Full Cost,Census CCS Data Collection,Concept Information Technology Ltd T/A Concept Resourcing,205675,763.51,Information Management Services,Large,Programme Expenditure,,
UK Statistics Family,Office for National Statistics,14/07/2021,Exp - Short-Term Contract & Agency Staff - Full Cost,Census CCS Data Collection,Concept Information Technology Ltd T/A Concept Resourcing,205675,"2,556.25",Information Management Services,Large,Programme Expenditure,,
UK Statistics Family,Office for National Statistics,14/07/2021,Exp - Short-Term Contract & Agency Staff - Full Cost,Programme Other,Concept Information Technology Ltd T/A Concept Resourcing,205675,"1,846.85",Information Management Services,Large,Programme Expenditure,,
UK Statistics Family,Office for National Statistics,14/07/2021,Exp - Short-Term Contract & Agency Staff - Full Cost,Covid Infection Survey,Concept Information Technology Ltd T/A Concept Resourcing,205675,"2,242.21",Information Management Services,Large,Programme Expenditure,,
UK Statistics Family,Office for National Statistics,14/07/2021,Exp - Short-Term Contract & Agency Staff - Full Cost,Covid Infection Survey,Concept Information Technology Ltd T/A Concept Resourcing,205675,"11,595.71",Information Management Services,Large,Programme Expenditure,,
UK Statistics Family,Office for National Statistics,14/07/2021,Exp - Short-Term Contract & Agency Staff - Full Cost,Business Change Support,Concept Information Technology Ltd T/A Concept Resourcing,205675,"3,828.25",Information Management Services,Large,Programme Expenditure,,
UK Statistics Family,Office for National Statistics,14/07/2021,Exp - Short-Term Contract & Agency Staff - Full Cost,Sustainability And Inequalities,Concept Information Technology Ltd T/A Concept Resourcing,205675,"3,626.77",Information Management Services,Large,Programme Expenditure,,
UK Statistics Family,Office for National Statistics,14/07/2021,Exp - Purchase Of Goods And Services Consultants,Productivity Research And Professional Development,Concept Information Technology Ltd T/A Concept Resourcing,205675,"2,069.33",Information Management Services,Large,Programme Expenditure,,
UK Statistics Family,Office for National Statistics,14/07/2021,Exp - Purchase Of Goods/Services - Contractors,Business Architecture Transformation And Statistical Strategy,Concept Information Technology Ltd T/A Concept Resourcing,205675,"11,340.00",Information Management Services,Large,Programme Expenditure,,
UK Statistics Family,Office for National Statistics,14/07/2021,Exp - Purchase Of Goods And Services Consultants,Business Architecture Transformation And Statistical Strategy,Concept Information Technology Ltd T/A Concept Resourcing,205675,"10,440.00",Information Management Services,Large,Programme Expenditure,,
UK Statistics Family,Office for National Statistics,14/07/2021,Exp - Short-Term Contract & Agency Staff - Full Cost,Ask Business Services,Concept Information Technology Ltd T/A Concept Resourcing,205675,"2,212.45",Information Management Services,Large,Programme Expenditure,,
UK Statistics Family,Office for National Statistics,14/07/2021,Exp - Short-Term Contract & Agency Staff - Full Cost,Data Architecture,Concept Information Technology Ltd T/A Concept Resourcing,205675,"12,090.33",Information Management Services,Large,Programme Expenditure,,
UK Statistics Family,Office for National Statistics,14/07/2021,Exp - Purchase Of Goods/Services - Contractors,Data Architecture,Concept Information Technology Ltd T/A Concept Resourcing,205675,"7,410.00",Information Management Services,Large,Programme Expenditure,,
UK Statistics Family,Office for National Statistics,14/07/2021,Exp - Purchase Of Goods/Services - IT Contractual Services,Tech Delivery Legacy Sp,Concept Information Technology Ltd T/A Concept Resourcing,205675,"4,500.00",Information Management Services,Large,Programme Expenditure,,
UK Statistics Family,Office for National Statistics,14/07/2021,Exp - Short-Term Contract & Agency Staff - Full Cost,Prices Division,Concept Information Technology Ltd T/A Concept Resourcing,205675,"2,650.97",Information Management Services,Large,Programme Expenditure,,
UK Statistics Family,Office for National Statistics,14/07/2021,Exp - Short-Term Contract & Agency Staff - Full Cost,Prices Division,Concept Information Technology Ltd T/A Concept Resourcing,205675,"23,929.08",Information Management Services,Large,Programme Expenditure,,
UK Statistics Family,Office for National Statistics,14/07/2021,Telecoms,Census CCS Data Collection,Bt Global Services,205676,"20,756.70",Telecommunications,Large,Programme Expenditure,,
UK Statistics Family,Office for National Statistics,14/07/2021,EXP - PURCHASE OF GOODS/SERVICES -  NON IT CONTRACTUAL PAYMENTS,Data Collection Service,Bt Global Services,205676,"47,519.33",Telecommunications,Large,Programme Expenditure,,
UK Statistics Family,Office for National Statistics,14/07/2021,Telecoms,IT Operations,Bt Global Services,205676,"27,153.19",Telecommunications,Large,Programme Expenditure,,
UK Statistics Family,Office for National Statistics,14/07/2021,IT Management And Change,Security And Information Management Saim,Hmrc,205679,194.80,Data Acquisition,Large,Programme Expenditure,,
UK Statistics Family,Office for National Statistics,14/07/2021,EXP - PURCHASE OF GOODS/SERVICES -  NON IT CONTRACTUAL PAYMENTS,Data As A Service,Hmrc,205679,"190,804.15",Data Acquisition,Large,Programme Expenditure,,
UK Statistics Family,Office for National Statistics,14/07/2021,Exp - Short-Term Contract & Agency Staff - Full Cost,Stakeholder Engagement And Comms,Malikshaw Interim & Executive,205691,"5,373.69",Information Management Services,SME,Programme Expenditure,,
UK Statistics Family,Office for National Statistics,14/07/2021,Exp - Purchase Of Goods/Services - Contractors,Testing,Malikshaw Interim & Executive,205691,"26,400.00",Information Management Services,SME,Programme Expenditure,,
UK Statistics Family,Office for National Statistics,14/07/2021,Exp - Short-Term Contract & Agency Staff - Full Cost,Census CCS Data Collection,Malikshaw Interim & Executive,205691,"15,209.70",Information Management Services,SME,Programme Expenditure,,
UK Statistics Family,Office for National Statistics,14/07/2021,Exp - Short-Term Contract & Agency Staff - Full Cost,Census CCS Data Collection,Malikshaw Interim & Executive,205691,"1,075.56",Information Management Services,SME,Programme Expenditure,,
UK Statistics Family,Office for National Statistics,14/07/2021,Exp - Short-Term Contract & Agency Staff - Full Cost,Covid Infection Survey,Malikshaw Interim & Executive,205691,"5,405.50",Information Management Services,SME,Programme Expenditure,,
UK Statistics Family,Office for National Statistics,14/07/2021,Exp - Short-Term Contract & Agency Staff - Full Cost,Finance,Malikshaw Interim & Executive,205691,"1,249.13",Information Management Services,SME,Programme Expenditure,,
UK Statistics Family,Office for National Statistics,14/07/2021,Exp - Purchase Of Goods/Services - Contractors,Portfolio Delivery,Malikshaw Interim & Executive,205691,"10,080.00",Information Management Services,SME,Programme Expenditure,,
UK Statistics Family,Office for National Statistics,14/07/2021,Exp - Short-Term Contract & Agency Staff - Full Cost,Data Architecture,Malikshaw Interim & Executive,205691,"9,603.00",Information Management Services,SME,Programme Expenditure,,
UK Statistics Family,Office for National Statistics,14/07/2021,Exp - Purchase Of Goods/Services - Contractors,Strategy And Architecture,Malikshaw Interim & Executive,205691,"16,975.20",Information Management Services,SME,Programme Expenditure,,
UK Statistics Family,Office for National Statistics,14/07/2021,Exp - Purchase Of Goods/Services - Contractors,Tech Delivery Legacy Sp,Malikshaw Interim & Executive,205691,"15,126.67",Information Management Services,SME,Programme Expenditure,,
UK Statistics Family,Office for National Statistics,14/07/2021,Exp - Purchase Of Goods/Services - Contractors,Tech Delivery Legacy Sp,Malikshaw Interim & Executive,205691,"15,840.00",Information Management Services,SME,Programme Expenditure,,
UK Statistics Family,Office for National Statistics,14/07/2021,Exp - Purchase Of Goods/Services - Contractors,Digital Delivery,Malikshaw Interim & Executive,205691,"13,063.94",Information Management Services,SME,Programme Expenditure,,
UK Statistics Family,Office for National Statistics,14/07/2021,Surveys,Crime Statistics,Kantar UK Ltd,205695,"261,230.20",Statistical Services,Large,Programme Expenditure,,
UK Statistics Family,Office for National Statistics,14/07/2021,Exp - Short-Term Contract & Agency Staff - Full Cost,Operations,Talent International,205703,"5,328.00",Information Management Services,SME,Programme Expenditure,,
UK Statistics Family,Office for National Statistics,14/07/2021,Exp - Purchase Of Goods/Services - Contractors,International Trade And Transactions,Talent International,205703,"8,568.00",Information Management Services,SME,Programme Expenditure,,
UK Statistics Family,Office for National Statistics,14/07/2021,Exp - Short-Term Contract & Agency Staff - Full Cost,Ask Business Services,Talent International,205703,"2,728.69",Information Management Services,SME,Programme Expenditure,,
UK Statistics Family,Office for National Statistics,14/07/2021,Exp - Short-Term Contract & Agency Staff - Full Cost,Data Architecture,Talent International,205703,"3,607.68",Information Management Services,SME,Programme Expenditure,,
UK Statistics Family,Office for National Statistics,14/07/2021,Exp - Purchase Of Goods/Services - Contractors,Tech Delivery Next Gen IT And Infrastructure,Talent International,205703,"3,000.00",Information Management Services,SME,Programme Expenditure,,
UK Statistics Family,Office for National Statistics,14/07/2021,Exp - Purchase Of Goods/Services - Contractors,IT Applications,Talent International,205703,"14,376.00",Information Management Services,SME,Programme Expenditure,,
UK Statistics Family,Office for National Statistics,14/07/2021,Marketing & Media,Social Survey Transformation Newport,Banner Group Ltd,205712,"46,200.00",Stationery,SME,Programme Expenditure,,
UK Statistics Family,Office for National Statistics,15/07/2021,Exp - Purchase Of Goods/Services - Contractors,Data Architecture,Empiric Solutions Limited,205907,"16,500.00",Information Management Services,Large,Programme Expenditure,,
UK Statistics Family,Office for National Statistics,15/07/2021,Exp - Purchase Of Goods/Services - Contractors,IT Applications,Empiric Solutions Limited,205907,"20,160.00",Information Management Services,Large,Programme Expenditure,,
UK Statistics Family,Office for National Statistics,15/07/2021,Exp - Purchase Of Goods/Services - Contractors,Business Architecture,Certes Computing Ltd,205912,"13,271.16",Information Management Services,SME,Programme Expenditure,,
UK Statistics Family,Office for National Statistics,15/07/2021,Exp - Purchase Of Goods/Services - Contractors,Testing,Certes Computing Ltd,205912,"22,148.38",Information Management Services,SME,Programme Expenditure,,
UK Statistics Family,Office for National Statistics,15/07/2021,Exp - Purchase Of Goods/Services - Contractors,Operations,Certes Computing Ltd,205912,"11,529.00",Information Management Services,SME,Programme Expenditure,,
UK Statistics Family,Office for National Statistics,15/07/2021,Exp - Purchase Of Goods/Services - Contractors,Security Advisory,Certes Computing Ltd,205912,"15,820.46",Information Management Services,SME,Programme Expenditure,,
UK Statistics Family,Office for National Statistics,15/07/2021,Exp - Purchase Of Goods/Services - Contractors,Security Advisory,Certes Computing Ltd,205912,"14,987.81",Information Management Services,SME,Programme Expenditure,,
UK Statistics Family,Office for National Statistics,15/07/2021,Exp - Purchase Of Goods/Services - Contractors,Census & Soc Methodology Dd,Certes Computing Ltd,205912,"13,677.95",Information Management Services,SME,Programme Expenditure,,
UK Statistics Family,Office for National Statistics,15/07/2021,Exp - Purchase Of Goods/Services - Contractors,Data Architecture,Certes Computing Ltd,205912,"21,684.91",Information Management Services,SME,Programme Expenditure,,
UK Statistics Family,Office for National Statistics,15/07/2021,Exp - Purchase Of Goods/Services - Contractors,CLOUD ARCHITECTURE,Certes Computing Ltd,205912,"14,603.40",Information Management Services,SME,Programme Expenditure,,
UK Statistics Family,Office for National Statistics,15/07/2021,Exp - Purchase Of Goods/Services - Contractors,Digital Delivery,Certes Computing Ltd,205912,"2,880.00",Information Management Services,SME,Programme Expenditure,,
UK Statistics Family,Office for National Statistics,15/07/2021,Exp - Purchase Of Goods/Services - Contractors,Digital Delivery,Certes Computing Ltd,205912,"15,211.93",Information Management Services,SME,Programme Expenditure,,
UK Statistics Family,Office for National Statistics,15/07/2021,Exp - Purchase Of Goods/Services - Contractors,Data As A Service,Certes Computing Ltd,205912,"30,667.36",Information Management Services,SME,Programme Expenditure,,
UK Statistics Family,Office for National Statistics,15/07/2021,Print and Post,Social Survey Transformation Newport,APS Group,205915,"509,373.64",Print and Post Services,Large,Programme Expenditure,,
UK Statistics Family,Office for National Statistics,15/07/2021,Print and Post,Social Survey Transformation Newport,APS Group,205915,"-4,076.78",Print and Post Services,Large,Programme Expenditure,,
UK Statistics Family,Office for National Statistics,15/07/2021,Print and Post,Social Surveys Division,APS Group,205915,"14,173.55",Print and Post Services,Large,Programme Expenditure,,
UK Statistics Family,Office for National Statistics,15/07/2021,Marketing & Media,Stakeholder Engagement And Comms,Manning Gottlieb,205918,"70,931.63",Marketing Services,Large,Programme Expenditure,,
UK Statistics Family,Office for National Statistics,15/07/2021,Exp - Purchase Of Goods/Services - IT Contractual Services,IT Operations,Methods Business & Digital Technology Ltd,205921,"138,600.00",Information Management Services,Large,Programme Expenditure,,
UK Statistics Family,Office for National Statistics,15/07/2021,Exp - Purchase Of Goods/Services - IT Contractual Services,Digital Delivery,Methods Business & Digital Technology Ltd,205921,"117,420.00",Information Management Services,Large,Programme Expenditure,,
UK Statistics Family,Office for National Statistics,15/07/2021,Exp - Purchase Of Goods/Services - IT Contractual Services,Digital Delivery,Methods Business & Digital Technology Ltd,205921,"58,680.00",Information Management Services,Large,Programme Expenditure,,
UK Statistics Family,Office for National Statistics,15/07/2021,Exp - Purchase Of Goods/Services - IT Contractual Services,Digital Delivery,Methods Business & Digital Technology Ltd,205921,"27,750.00",Information Management Services,Large,Programme Expenditure,,
UK Statistics Family,Office for National Statistics,15/07/2021,Exp - Purchase Of Goods/Services - IT Contractual Services,IT Applications,Diegesis Limited,205924,"137,130.00",Information Management Services,Large,Programme Expenditure,,
UK Statistics Family,Office for National Statistics,15/07/2021,Marketing & Media,Stakeholder Engagement And Comms,M&C Saatchi UK Ltd,205928,"38,009.84",Marketing Services,Large,Programme Expenditure,,
UK Statistics Family,Office for National Statistics,19/07/2021,FM Contract Payments,Corporate Centre,Vinci Construction UK Limited,206073,"42,101.05",Facilities Mangement Services,Large,Programme Expenditure,,
UK Statistics Family,Office for National Statistics,19/07/2021,Exp - Purchase Of Goods/Services - IT Contractual Services,Strategy And Architecture,Empiric Solutions Limited,206074,"46,410.00",Information Management Services,Large,Programme Expenditure,,
UK Statistics Family,Office for National Statistics,19/07/2021,Telecoms,IT Operations,Bt Global Services,206079,"47,707.24",Telecommunications,Large,Programme Expenditure,,
UK Statistics Family,Office for National Statistics,19/07/2021,Accommodation & Building Management,Interview Management IPS,Heathrow Airport,206081,"41,162.91",Rental Charges,Large,Programme Expenditure,,
UK Statistics Family,Office for National Statistics,19/07/2021,Rent Payable,Interview Management IPS,Heathrow Airport,206081,"2,092.27",Rental Charges,Large,Programme Expenditure,,
UK Statistics Family,Office for National Statistics,19/07/2021,Exp - Purchase Of Goods/Services - Contractors,Programme Delivery,Certes Computing Ltd,206085,"10,567.86",Information Management Services,SME,Programme Expenditure,,
UK Statistics Family,Office for National Statistics,19/07/2021,Exp - Purchase Of Goods/Services - Contractors,Best Practice And Impact,Certes Computing Ltd,206085,"12,778.03",Information Management Services,SME,Programme Expenditure,,
UK Statistics Family,Office for National Statistics,19/07/2021,Exp - Purchase Of Goods/Services - Contractors,MDR Management,Certes Computing Ltd,206085,13678.63,Information Management Services,SME,Programme Expenditure,,
UK Statistics Family,Office for National Statistics,19/07/2021,Exp - Purchase Of Goods/Services - Contractors,Data Architecture,Certes Computing Ltd,206085,"13,678.63",Information Management Services,SME,Programme Expenditure,,
UK Statistics Family,Office for National Statistics,19/07/2021,Exp - Purchase Of Goods/Services - Contractors,Strategy And Architecture,Certes Computing Ltd,206085,"13,321.92",Information Management Services,SME,Programme Expenditure,,
UK Statistics Family,Office for National Statistics,19/07/2021,Exp - Purchase Of Goods/Services - Contractors,Tech Delivery Legacy Sp,Certes Computing Ltd,206085,"12,958.70",Information Management Services,SME,Programme Expenditure,,
UK Statistics Family,Office for National Statistics,19/07/2021,Exp - Purchase Of Goods/Services - Contractors,Tech Delivery Legacy Sp,Certes Computing Ltd,206085,"19,311.19",Information Management Services,SME,Programme Expenditure,,
UK Statistics Family,Office for National Statistics,19/07/2021,Exp - Purchase Of Goods/Services - Contractors,Tech Delivery Data As A Platform,Certes Computing Ltd,206085,"13,678.63",Information Management Services,SME,Programme Expenditure,,
UK Statistics Family,Office for National Statistics,19/07/2021,Exp - Purchase Of Goods/Services - Contractors,IT Applications,Certes Computing Ltd,206085,"13,386.56",Information Management Services,SME,Programme Expenditure,,
UK Statistics Family,Office for National Statistics,19/07/2021,Exp - Purchase Of Goods/Services - Contractors ,IT Operations,Certes Computing Ltd,206085,"14,915.16",Information Management Services,SME,Programme Expenditure,,
UK Statistics Family,Office for National Statistics,19/07/2021,Exp - Purchase Of Goods/Services - Contractors,Digital Delivery,Certes Computing Ltd,206085,"7,200.00",Information Management Services,SME,Programme Expenditure,,
UK Statistics Family,Office for National Statistics,19/07/2021,Exp - Purchase Of Goods/Services - Contractors,Digital Delivery,Certes Computing Ltd,206085,"6,341.00",Information Management Services,SME,Programme Expenditure,,
UK Statistics Family,Office for National Statistics,19/07/2021,Exp - Purchase Of Goods/Services - Contractors,Digital Delivery,Certes Computing Ltd,206085,"10,216.07",Information Management Services,SME,Programme Expenditure,,
UK Statistics Family,Office for National Statistics,19/07/2021,EXP - PURCHASE OF GOODS/SERVICES -  NON IT CONTRACTUAL PAYMENTS,Census CCS Data Collection,Granby Marketing Services Ltd,206093,"106,885.76",Stoarage and Distribution Services,Large,Programme Expenditure,,
UK Statistics Family,Office for National Statistics,19/07/2021,Exp - Purchase Of Goods/Services - Contractors,Business Architecture,Parity Resources Limited,206100,"3,657.98",Information Management Services,Large,Programme Expenditure,,
UK Statistics Family,Office for National Statistics,19/07/2021,Exp - Short-Term Contract & Agency Staff - Full Cost,Census CCS Data Collection,Parity Resources Limited,206100,764.64,Information Management Services,Large,Programme Expenditure,,
UK Statistics Family,Office for National Statistics,19/07/2021,Exp - Purchase Of Goods/Services - Contractors,Programme Support,Parity Resources Limited,206100,"1,796.28",Information Management Services,Large,Programme Expenditure,,
UK Statistics Family,Office for National Statistics,19/07/2021,Exp - Purchase Of Goods/Services - Contractors,Covid Infection Survey,Parity Resources Limited,206100,"1,800.00",Information Management Services,Large,Programme Expenditure,,
UK Statistics Family,Office for National Statistics,19/07/2021,Exp - Purchase Of Goods/Services - Contractors,Covid Infection Survey,Parity Resources Limited,206100,"1,197.52",Information Management Services,Large,Programme Expenditure,,
UK Statistics Family,Office for National Statistics,19/07/2021,Exp - Short-Term Contract & Agency Staff - Full Cost,Business Architecture Transformation And Statistical Strategy,Parity Resources Limited,206100,439.56,Information Management Services,Large,Programme Expenditure,,
UK Statistics Family,Office for National Statistics,19/07/2021,Exp - Short-Term Contract & Agency Staff - Full Cost,Recruitment ,Parity Resources Limited,206100,"1,465.20",Information Management Services,Large,Programme Expenditure,,
UK Statistics Family,Office for National Statistics,19/07/2021,Exp - Short-Term Contract & Agency Staff - Full Cost,Data Architecture,Parity Resources Limited,206100,"2,197.80",Information Management Services,Large,Programme Expenditure,,
UK Statistics Family,Office for National Statistics,19/07/2021,Exp - Purchase Of Goods/Services - Contractors,IT Applications,Parity Resources Limited,206100,"8,490.60",Information Management Services,Large,Programme Expenditure,,
UK Statistics Family,Office for National Statistics,19/07/2021,Exp - Purchase Of Goods/Services - Contractors,Digital Delivery,Parity Resources Limited,206100,"2,723.40",Information Management Services,Large,Programme Expenditure,,
UK Statistics Family,Office for National Statistics,19/07/2021,Exp - Short-Term Contract & Agency Staff - Full Cost,Survey Processing Centre,Parity Resources Limited,206100,732.60,Information Management Services,Large,Programme Expenditure,,
UK Statistics Family,Office for National Statistics,19/07/2021,Marketing & Media,Stakeholder Engagement And Comms,M&C Saatchi UK Ltd,206103,"142,027.34",Marketing Services,Large,Programme Expenditure,,
UK Statistics Family,Office for National Statistics,19/07/2021,Exp - Permanent UK Staff - PRP Voucher Payments,ONS Corporate Funds,Edenred (UK Group) Limited,206104,"1,000.00",Performance Reward Vouchers,Large,Programme Expenditure,,
UK Statistics Family,Office for National Statistics,19/07/2021,Other Goods And Services,ONS Corporate Funds,Edenred (UK Group) Limited,206104,"24,900.00",Performance Reward Vouchers,Large,Programme Expenditure,,
UK Statistics Family,Office for National Statistics,19/07/2021,EXP - PURCHASE OF GOODS/SERVICES -  NON IT CONTRACTUAL PAYMENTS,Data Collection Service,Good Things Foundation,206108,"130,040.00",Census Assisted Digital Services,SME,Programme Expenditure,,
UK Statistics Family,Office for National Statistics,20/07/2021,Hosting,IT Operations,Crown Hosting Data Centres Limited,206176,"62,309.69",Information Management Services,SME,Programme Expenditure,,
UK Statistics Family,Office for National Statistics,20/07/2021,"ICT Outsourcing, Maintenance And Support",IT Operations,Microsoft Limited,206177,"63,636.00",Software Licenses,Large,Programme Expenditure,,
UK Statistics Family,Office for National Statistics,20/07/2021,Exp - Purchase Of Goods/Services - IT Contractual Services,Tech Delivery Data As A Platform,Kainos,206178,"33,999.00",Information Management Services,Large,Programme Expenditure,,
UK Statistics Family,Office for National Statistics,20/07/2021,Hosting,Tech Delivery Data As A Platform,Kainos,206178,"2,483.29",Information Management Services,Large,Programme Expenditure,,
UK Statistics Family,Office for National Statistics,20/07/2021,Exp - Purchase Of Goods/Services - IT Contractual Services,Strategy And Architecture,E Synergy Solutions,206179,"15,300.00",Information Management Services,SME,Programme Expenditure,,
UK Statistics Family,Office for National Statistics,20/07/2021,Exp - Purchase Of Goods/Services - IT Contractual Services,Strategy And Architecture,E Synergy Solutions,206179,"15,840.00",Information Management Services,SME,Programme Expenditure,,
UK Statistics Family,Office for National Statistics,20/07/2021,Exp - Purchase Of Goods/Services - IT Contractual Services,Tech Delivery Legacy Sp,E Synergy Solutions,206179,"86,724.00",Information Management Services,SME,Programme Expenditure,,
UK Statistics Family,Office for National Statistics,20/07/2021,Exp - Purchase Of Goods/Services - IT Contractual Services,IT Operations,E Synergy Solutions,206179,"89,988.00",Information Management Services,SME,Programme Expenditure,,
UK Statistics Family,Office for National Statistics,20/07/2021,Exp - Purchase Of Goods/Services - Incentive Payments,Survey Management,Park Retail Ltd,206181,"33,182.15",Survey Response Incentive Vouchers,Large,Programme Expenditure,,
UK Statistics Family,Office for National Statistics,20/07/2021,Exp - Short-Term Contract & Agency Staff - Full Cost,Census CCS Data Collection,Concept Information Technology Ltd T/A Concept Resourcing,206182,"3,242.38",Information Management Services,Large,Programme Expenditure,,
UK Statistics Family,Office for National Statistics,20/07/2021,Exp - Short-Term Contract & Agency Staff - Full Cost,Business Change Support,Concept Information Technology Ltd T/A Concept Resourcing,206182,"3,828.25",Information Management Services,Large,Programme Expenditure,,
UK Statistics Family,Office for National Statistics,20/07/2021,Exp - Short-Term Contract & Agency Staff - Full Cost,Business Change Support,Concept Information Technology Ltd T/A Concept Resourcing,206182,"3,828.25",Information Management Services,Large,Programme Expenditure,,
UK Statistics Family,Office for National Statistics,20/07/2021,Exp - Short-Term Contract & Agency Staff - Full Cost,Business Change Support,Concept Information Technology Ltd T/A Concept Resourcing,206182,"3,626.77",Information Management Services,Large,Programme Expenditure,,
UK Statistics Family,Office for National Statistics,20/07/2021,Exp - Short-Term Contract & Agency Staff - Full Cost,Productivity Research And Professional Development,Concept Information Technology Ltd T/A Concept Resourcing,206182,"2,993.15",Information Management Services,Large,Programme Expenditure,,
UK Statistics Family,Office for National Statistics,20/07/2021,Exp - Short-Term Contract & Agency Staff - Full Cost,Productivity Research And Professional Development,Concept Information Technology Ltd T/A Concept Resourcing,206182,"2,790.21",Information Management Services,Large,Programme Expenditure,,
UK Statistics Family,Office for National Statistics,20/07/2021,Exp - Short-Term Contract & Agency Staff - Full Cost,Business Architecture Transformation And Statistical Strategy,Concept Information Technology Ltd T/A Concept Resourcing,206182,"4,846.58",Information Management Services,Large,Programme Expenditure,,
UK Statistics Family,Office for National Statistics,20/07/2021,Exp - Short-Term Contract & Agency Staff - Full Cost,Business Statistics Transformation,Concept Information Technology Ltd T/A Concept Resourcing,206182,"5,969.30",Information Management Services,Large,Programme Expenditure,,
UK Statistics Family,Office for National Statistics,20/07/2021,Telecoms,Census CCS Data Collection,Bt Global Services,206185,3413.53,Telecommunications,Large,Programme Expenditure,,
UK Statistics Family,Office for National Statistics,20/07/2021,EXP - PURCHASE OF GOODS/SERVICES -  NON IT CONTRACTUAL PAYMENTS,Data Collection Service,Bt Global Services,206185,"8,468.12",Telecommunications,Large,Programme Expenditure,,
UK Statistics Family,Office for National Statistics,20/07/2021,Telecoms,IT Operations,Bt Global Services,206185,26871.49,Telecommunications,Large,Programme Expenditure,,
UK Statistics Family,Office for National Statistics,20/07/2021,"ICT Outsourcing, Maintenance And Support",Researcher Support And Data Access ,Equiniti Limited,206188,"144,856.39",Software Licenses,Large,Programme Expenditure,,
UK Statistics Family,Office for National Statistics,20/07/2021,Hosting,IT Operations,Equiniti Limited,206188,"49,459.06",Software Licenses,Large,Programme Expenditure,,
UK Statistics Family,Office for National Statistics,20/07/2021,EXP - PURCHASE OF GOODS/SERVICES -  NON IT CONTRACTUAL PAYMENTS,Census CCS Data Collection,Adecco UK Limited,206200,"514,239.60",Census People Services Contractual,SME,Programme Expenditure,,
UK Statistics Family,Office for National Statistics,20/07/2021,Exp - Purchase Of Goods/Services - IT Contractual Services,Digital Delivery,Methods Business & Digital Technology Ltd,206201,"61,206.00",Information Management Services,Large,Programme Expenditure,,
UK Statistics Family,Office for National Statistics,20/07/2021,Exp - Purchase Of Goods/Services - IT Contractual Services,Digital Delivery,Methods Business & Digital Technology Ltd,206201,"30,960.00",Information Management Services,Large,Programme Expenditure,,
UK Statistics Family,Office for National Statistics,20/07/2021,Exp - Purchase Of Goods/Services - IT Contractual Services,Digital Delivery,Methods Business & Digital Technology Ltd,206201,"16,500.00",Information Management Services,Large,Programme Expenditure,,
UK Statistics Family,Office for National Statistics,20/07/2021,Exp - Purchase Of Goods/Services - Contractors,Business Architecture,Parity Resources Limited,206202,"4,858.60",Information Management Services,Large,Programme Expenditure,,
UK Statistics Family,Office for National Statistics,20/07/2021,Exp - Short-Term Contract & Agency Staff - Full Cost,Census CCS Data Collection,Parity Resources Limited,206202,689.40,Information Management Services,Large,Programme Expenditure,,
UK Statistics Family,Office for National Statistics,20/07/2021,Exp - Purchase Of Goods/Services - Contractors,Researcher Support And Data Access ,Parity Resources Limited,206202,"8,423.02",Information Management Services,Large,Programme Expenditure,,
UK Statistics Family,Office for National Statistics,20/07/2021,Exp - Purchase Of Goods/Services - Contractors,INTEGRATED DATA STRATEGY AND DELIVERY,Parity Resources Limited,206202,"15,149.42",Information Management Services,Large,Programme Expenditure,,
UK Statistics Family,Office for National Statistics,20/07/2021,Exp - Purchase Of Goods/Services - Contractors,Digital Delivery,Parity Resources Limited,206202,"3,430.50",Information Management Services,Large,Programme Expenditure,,
UK Statistics Family,Office for National Statistics,20/07/2021,Exp - Short-Term Contract & Agency Staff - Full Cost,Survey Processing Centre,Parity Resources Limited,206202,"1,316.70",Information Management Services,Large,Programme Expenditure,,
UK Statistics Family,Office for National Statistics,20/07/2021,Exp - Purchase Of Goods/Services - IT Contractual Services,Tech Delivery Next Gen IT And Infrastructure,Diegesis Limited,206203,"38,874.00",Information Management Services,Large,Programme Expenditure,,
UK Statistics Family,Office for National Statistics,20/07/2021,End User Software And Hardware,Census CCS Data Collection,Cdw Limited,206205,"2,988.00",Software Licenses,Large,Programme Expenditure,,
UK Statistics Family,Office for National Statistics,20/07/2021,Telecoms,IT Operations,Cdw Limited,206205,79.20,Software Licenses,Large,Programme Expenditure,,
UK Statistics Family,Office for National Statistics,20/07/2021,End User Software And Hardware,IT Operations,Cdw Limited,206205,"33,963.60",Software Licenses,Large,Programme Expenditure,,
UK Statistics Family,Office for National Statistics,20/07/2021,Specialist User Software And Hardware,CDIO UNGP,denodo,206206,"209,968.80",Software Licenses,SME,Programme Expenditure,,
UK Statistics Family,Office for National Statistics,20/07/2021,Exp - Purchase Of Goods And Services Consultants,Consultancy Management,Bloom Procurement Services Ltd,206210,"30,644.90",Consultancy,Large,Programme Expenditure,,
UK Statistics Family,Office for National Statistics,21/07/2021,Surveys,Social Surveys Division,Natcen Social Research,206438,"548,786.40",Statistical Services,Large,Programme Expenditure,,
UK Statistics Family,Office for National Statistics,21/07/2021,Exp - Short-Term Contract & Agency Staff - Full Cost,Census CCS Data Collection,Concept Information Technology Ltd T/A Concept Resourcing,206439,"3,073.10",Information Management Services,Large,Programme Expenditure,,
UK Statistics Family,Office for National Statistics,21/07/2021,Exp - Short-Term Contract & Agency Staff - Full Cost,Business Change Support,Concept Information Technology Ltd T/A Concept Resourcing,206439,"3,740.26",Information Management Services,Large,Programme Expenditure,,
UK Statistics Family,Office for National Statistics,21/07/2021,Exp - Short-Term Contract & Agency Staff - Full Cost,Business Change Support,Concept Information Technology Ltd T/A Concept Resourcing,206439,"7,636.37",Information Management Services,Large,Programme Expenditure,,
UK Statistics Family,Office for National Statistics,21/07/2021,Exp - Short-Term Contract & Agency Staff - Full Cost,Business Change Support,Concept Information Technology Ltd T/A Concept Resourcing,206439,"3,828.25",Information Management Services,Large,Programme Expenditure,,
UK Statistics Family,Office for National Statistics,21/07/2021,Exp - Purchase Of Goods/Services - IT Contractual Services,Tech Delivery Legacy Sp,Concept Information Technology Ltd T/A Concept Resourcing,206439,"10,950.00",Information Management Services,Large,Programme Expenditure,,
UK Statistics Family,Office for National Statistics,21/07/2021,Exp - Short-Term Contract & Agency Staff - Full Cost,Labour Market,Concept Information Technology Ltd T/A Concept Resourcing,206439,"2,820.82",Information Management Services,Large,Programme Expenditure,,
UK Statistics Family,Office for National Statistics,21/07/2021,Surveys,Labour Market,University of Durham,206440,"134,437.60",Statistical Services,Large,Programme Expenditure,,
UK Statistics Family,Office for National Statistics,21/07/2021,Exp - Purchase Of Goods/Services - IT Contractual Services,Strategy And Architecture,Ibm United Kingdom Ltd,206443,"31,041.78",Information Management Services,Large,Programme Expenditure,,
UK Statistics Family,Office for National Statistics,21/07/2021,Software Licences At Cost - Additions,IT Operations,Softcat,206445,"34,969.34",Software Licenses,SME,Programme Expenditure,,
UK Statistics Family,Office for National Statistics,21/07/2021,Exp - Purchase Of Goods/Services - Contractors,Strategy And Architecture,Certes Computing Ltd,206450,"28,438.20",Information Management Services,SME,Programme Expenditure,,
UK Statistics Family,Office for National Statistics,21/07/2021,Exp - Purchase Of Goods/Services - Contractors,Digital Delivery,Certes Computing Ltd,206450,"14,359.44",Information Management Services,SME,Programme Expenditure,,
UK Statistics Family,Office for National Statistics,21/07/2021,Exp - Short-Term Contract & Agency Staff - Full Cost,Census CCS Data Collection,Malikshaw Interim & Executive,206455,"13,113.47",Information Management Services,SME,Programme Expenditure,,
UK Statistics Family,Office for National Statistics,21/07/2021,Exp - Short-Term Contract & Agency Staff - Full Cost,Census CCS Data Collection,Malikshaw Interim & Executive,206455,18.26,Information Management Services,SME,Programme Expenditure,,
UK Statistics Family,Office for National Statistics,21/07/2021,Exp - Short-Term Contract & Agency Staff - Full Cost,Census CCS Data Collection,Malikshaw Interim & Executive,206455,1379.96,Information Management Services,SME,Programme Expenditure,,
UK Statistics Family,Office for National Statistics,21/07/2021,Exp - Purchase Of Goods/Services - Contractors,Data As A Service,Malikshaw Interim & Executive,206455,"15,126.67",Information Management Services,SME,Programme Expenditure,,
UK Statistics Family,Office for National Statistics,22/07/2021,"ICT Outsourcing, Maintenance And Support",Finance,Scc,206473,"26,895.84",Software Licenses,Large,Programme Expenditure,,
UK Statistics Family,Office for National Statistics,22/07/2021,Buildings Under Construction,Property Newport,Central Roofing Ltd,206477,"27,435.06",Buildings Maintenance,SME,Programme Expenditure,,
UK Statistics Family,Office for National Statistics,22/07/2021,Capital Major Works >25K,Property Newport,Central Roofing Ltd,206477,"3,841.57",Buildings Maintenance,SME,Programme Expenditure,,
UK Statistics Family,Office for National Statistics,22/07/2021,Exp - Purchase Of Goods/Services - Contractors,HR Business Partners,Certes Computing Ltd,206478,"15,115.80",Information Management Services,SME,Programme Expenditure,,
UK Statistics Family,Office for National Statistics,22/07/2021,Exp - Purchase Of Goods/Services - Contractors,Tech Delivery Data As A Platform,Certes Computing Ltd,206478,"13,322.50",Information Management Services,SME,Programme Expenditure,,
UK Statistics Family,Office for National Statistics,22/07/2021,Exp - Purchase Of Goods/Services - Contractors,Digital Delivery,Certes Computing Ltd,206478,"9,684.36",Information Management Services,SME,Programme Expenditure,,
UK Statistics Family,Office for National Statistics,22/07/2021,Exp - Purchase Of Goods/Services - Contractors,Digital Delivery,Certes Computing Ltd,206478,"15,819.78",Information Management Services,SME,Programme Expenditure,,
UK Statistics Family,Office for National Statistics,22/07/2021,Exp - Purchase Of Goods/Services - IT Contractual Services,IT Operations,CTS (Cloud Technology Solutions Ltd),206486,130964.4,DST Infrastructure Preparation,Large,Programme Expenditure,,
UK Statistics Family,Office for National Statistics,22/07/2021,EXP - PURCHASE OF GOODS/SERVICES -  NON IT CONTRACTUAL PAYMENTS,Census CCS Data Collection,Adecco UK Limited,206488,"96,708.00",Census People Services Contractual,SME,Programme Expenditure,,
UK Statistics Family,Office for National Statistics,22/07/2021,Exp - Purchase Of Goods/Services - Contractors,Programme Delivery,Parity Resources Limited,206491,"3,310.50",Information Management Services,Large,Programme Expenditure,,
UK Statistics Family,Office for National Statistics,22/07/2021,Exp - Purchase Of Goods/Services - Contractors,Data Architecture,Parity Resources Limited,206491,"25,935.00",Information Management Services,Large,Programme Expenditure,,
UK Statistics Family,Office for National Statistics,22/07/2021,Exp - Purchase Of Goods/Services - Contractors,Business Statistics Transformation,Parity Resources Limited,206491,"2,242.80",Information Management Services,Large,Programme Expenditure,,
UK Statistics Family,Office for National Statistics,22/07/2021,Exp - Short-Term Contract & Agency Staff - Full Cost,Social Surveys Division,Parity Resources Limited,206491,732.60,Information Management Services,Large,Programme Expenditure,,
UK Statistics Family,Office for National Statistics,22/07/2021,Exp - Purchase Of Goods/Services - IT Contractual Services,CLOUD ARCHITECTURE,SmartSourcing Ltd,206493,"3,236.64",Information Management Services,SME,Programme Expenditure,,
UK Statistics Family,Office for National Statistics,22/07/2021,Exp - Purchase Of Goods/Services - Contractors,CDIO UNGP,SmartSourcing Ltd,206493,"25,473.89",Information Management Services,SME,Programme Expenditure,,
UK Statistics Family,Office for National Statistics,23/07/2021,Exp - Purchase Of Goods And Services Consultants,Digital Publishing,Swirrl It Ltd,206497,"143,731.20",Information Management Services,SME,Programme Expenditure,,
UK Statistics Family,Office for National Statistics,23/07/2021,Exp - Purchase Of Goods/Services - Incentive Payments,Survey Management,Park Retail Ltd,206498,"34,444.32",Survey Response Incentive Vouchers,Large,Programme Expenditure,,
UK Statistics Family,Office for National Statistics,23/07/2021,Exp - Purchase Of Goods/Services - Contractors,Business Architecture,Parity Resources Limited,206509,"3,297.98",Information Management Services,Large,Programme Expenditure,,
UK Statistics Family,Office for National Statistics,23/07/2021,Exp - Short-Term Contract & Agency Staff - Full Cost,Census CCS Data Collection,Parity Resources Limited,206509,722.16,Information Management Services,Large,Programme Expenditure,,
UK Statistics Family,Office for National Statistics,23/07/2021,Exp - Purchase Of Goods/Services - Contractors,Programme Delivery,Parity Resources Limited,206509,3310.5,Information Management Services,Large,Programme Expenditure,,
UK Statistics Family,Office for National Statistics,23/07/2021,Exp - Purchase Of Goods/Services - Contractors,Covid Infection Survey,Parity Resources Limited,206509,"2,993.80",Information Management Services,Large,Programme Expenditure,,
UK Statistics Family,Office for National Statistics,23/07/2021,Exp - Purchase Of Goods/Services - Contractors,Analysis Microdata And Engagement,Parity Resources Limited,206509,740.11,Information Management Services,Large,Programme Expenditure,,
UK Statistics Family,Office for National Statistics,23/07/2021,Exp - Short-Term Contract & Agency Staff - Full Cost,Recruitment ,Parity Resources Limited,206509,"1,465.20",Information Management Services,Large,Programme Expenditure,,
UK Statistics Family,Office for National Statistics,23/07/2021,Exp - Short-Term Contract & Agency Staff - Full Cost,Recruitment ,Parity Resources Limited,206509,"1,465.20",Information Management Services,Large,Programme Expenditure,,
UK Statistics Family,Office for National Statistics,23/07/2021,Exp - Short-Term Contract & Agency Staff - Full Cost,Data Architecture,Parity Resources Limited,206509,"2,197.80",Information Management Services,Large,Programme Expenditure,,
UK Statistics Family,Office for National Statistics,23/07/2021,Exp - Purchase Of Goods/Services - Contractors,Data Architecture,Parity Resources Limited,206509,"3,412.50",Information Management Services,Large,Programme Expenditure,,
UK Statistics Family,Office for National Statistics,23/07/2021,Exp - Purchase Of Goods/Services - Contractors,Digital Delivery,Parity Resources Limited,206509,"3,430.50",Information Management Services,Large,Programme Expenditure,,
UK Statistics Family,Office for National Statistics,23/07/2021,Exp - Purchase Of Goods/Services - Contractors,Digital Delivery,Parity Resources Limited,206509,"2,723.40",Information Management Services,Large,Programme Expenditure,,
UK Statistics Family,Office for National Statistics,23/07/2021,Exp - Short-Term Contract & Agency Staff - Full Cost,Survey Processing Centre,Parity Resources Limited,206509,148.50,Information Management Services,Large,Programme Expenditure,,
UK Statistics Family,Office for National Statistics,23/07/2021,Exp - Short-Term Contract & Agency Staff - Full Cost,Social Survey Transformation Titchfield,Parity Resources Limited,206509,"2,840.86",Information Management Services,Large,Programme Expenditure,,
UK Statistics Family,Office for National Statistics,23/07/2021,Exp - Purchase Of Goods/Services - IT Contractual Services,Digital Delivery,Equal Experts UK Ltd,206510,"134,366.40",Information Management Services,Large,Programme Expenditure,,
UK Statistics Family,Office for National Statistics,23/07/2021,Exp - Purchase Of Goods/Services - Contractors,Commercial Services,Gardiner & Theobald LLP,206513,"33,880.00",Temporary Staff,Large,Programme Expenditure,,
UK Statistics Family,Office for National Statistics,23/07/2021,Exp - Purchase Of Goods/Services - Contractors,Commercial Services,Gardiner & Theobald LLP,206513,"107,900.00",Temporary Staff,Large,Programme Expenditure,,
UK Statistics Family,Office for National Statistics,26/07/2021,Exp - Purchase Of Goods/Services - Contractors,Commercial Services,Certes Computing Ltd,206742,"12,169.04",Information Management Services,SME,Programme Expenditure,,
UK Statistics Family,Office for National Statistics,26/07/2021,Exp - Purchase Of Goods/Services - Contractors,Security Advisory,Certes Computing Ltd,206742,17293.61,Information Management Services,SME,Programme Expenditure,,
UK Statistics Family,Office for National Statistics,26/07/2021,Exp - Purchase Of Goods/Services - Contractors,Business Architecture,La International,206743,"4,658.42",Information Management Services,SME,Programme Expenditure,,
UK Statistics Family,Office for National Statistics,26/07/2021,Exp - Purchase Of Goods/Services - Contractors,Testing,La International,206743,"12,142.54",Information Management Services,SME,Programme Expenditure,,
UK Statistics Family,Office for National Statistics,26/07/2021,Exp - Purchase Of Goods/Services - Contractors,Testing,La International,206743,2936.85,Information Management Services,SME,Programme Expenditure,,
UK Statistics Family,Office for National Statistics,26/07/2021,Exp - Purchase Of Goods/Services - Contractors,HALE,La International,206743,"2,413.75",Information Management Services,SME,Programme Expenditure,,
UK Statistics Family,Office for National Statistics,26/07/2021,Exp - Purchase Of Goods/Services - Contractors,Sustainability And Inequalities,La International,206743,"5,051.04",Information Management Services,SME,Programme Expenditure,,
UK Statistics Family,Office for National Statistics,26/07/2021,Exp - Purchase Of Goods/Services - Contractors,Data Architecture,La International,206743,6728.1,Information Management Services,SME,Programme Expenditure,,
UK Statistics Family,Office for National Statistics,26/07/2021,Exp - Purchase Of Goods/Services - Contractors,Data Architecture,La International,206743,"3,588.30",Information Management Services,SME,Programme Expenditure,,
UK Statistics Family,Office for National Statistics,26/07/2021,Exp - Purchase Of Goods/Services - Contractors,Data Architecture,La International,206743,"3,524.22",Information Management Services,SME,Programme Expenditure,,
UK Statistics Family,Office for National Statistics,26/07/2021,Exp - Purchase Of Goods/Services - Contractors,CLOUD ARCHITECTURE,La International,206743,"7,689.24",Information Management Services,SME,Programme Expenditure,,
UK Statistics Family,Office for National Statistics,26/07/2021,Exp - Purchase Of Goods/Services - Contractors,Tech Delivery Legacy Sp,La International,206743,"13,392.04",Information Management Services,SME,Programme Expenditure,,
UK Statistics Family,Office for National Statistics,26/07/2021,Exp - Purchase Of Goods/Services - Contractors,Tech Delivery Next Gen IT And Infrastructure,La International,206743,"2,563.10",Information Management Services,SME,Programme Expenditure,,
UK Statistics Family,Office for National Statistics,26/07/2021,Exp - Purchase Of Goods/Services - Contractors,IT Applications,La International,206743,"18,505.50",Information Management Services,SME,Programme Expenditure,,
UK Statistics Family,Office for National Statistics,26/07/2021,Exp - Purchase Of Goods/Services - Contractors,Data As A Service,La International,206743,"8,009.64",Information Management Services,SME,Programme Expenditure,,
UK Statistics Family,Office for National Statistics,26/07/2021,Exp - Purchase Of Goods/Services - Contractors,Programme Delivery,Parity Resources Limited,206748,662.10,Information Management Services,Large,Programme Expenditure,,
UK Statistics Family,Office for National Statistics,26/07/2021,Exp - Purchase Of Goods/Services - Contractors,Portfolio Delivery,Parity Resources Limited,206748,"25,327.17",Information Management Services,Large,Programme Expenditure,,
UK Statistics Family,Office for National Statistics,26/07/2021,Exp - Purchase Of Goods/Services - Contractors,Commercial Services,Parity Resources Limited,206748,"52,289.28",Information Management Services,Large,Programme Expenditure,,
UK Statistics Family,Office for National Statistics,26/07/2021,Exp - Short-Term Contract & Agency Staff - Full Cost,Recruitment ,Parity Resources Limited,206748,"6,019.20",Information Management Services,Large,Programme Expenditure,,
UK Statistics Family,Office for National Statistics,26/07/2021,Exp - Purchase Of Goods And Services Consultants,Finance,iCoTech Services,206750,"32,616.00",Consultancy,SME,Programme Expenditure,,
UK Statistics Family,Office for National Statistics,27/07/2021,End User Software And Hardware,IT Operations,Softcat,206768,"134,136.00",Software Licenses,SME,Programme Expenditure,,
UK Statistics Family,Office for National Statistics,27/07/2021,Exp - Purchase Of Goods And Services Consultants,Productivity Research And Professional Development,Niesr,206769,"50,554.80",Statistical Services,SME,Programme Expenditure,,
UK Statistics Family,Office for National Statistics,27/07/2021,Hosting,IT Operations,Amazon Web Services Inc,206781,"222,377.13",Information Management Services,Large,Programme Expenditure,,
UK Statistics Family,Office for National Statistics,27/07/2021,Exp - Purchase Of Goods/Services - Contractors,Business Architecture,LA FOSSE ASSOCIATES LIMITED,206784,"7,200.00",Information Management Services,Large,Programme Expenditure,,
UK Statistics Family,Office for National Statistics,27/07/2021,Exp - Purchase Of Goods/Services - Contractors,Business Architecture,LA FOSSE ASSOCIATES LIMITED,206784,"10,080.00",Information Management Services,Large,Programme Expenditure,,
UK Statistics Family,Office for National Statistics,27/07/2021,Exp - Purchase Of Goods/Services - Contractors,Data Architecture,LA FOSSE ASSOCIATES LIMITED,206784,"4,050.00",Information Management Services,Large,Programme Expenditure,,
UK Statistics Family,Office for National Statistics,27/07/2021,Exp - Purchase Of Goods/Services - Contractors,CLOUD ARCHITECTURE,LA FOSSE ASSOCIATES LIMITED,206784,"13,680.00",Information Management Services,Large,Programme Expenditure,,
UK Statistics Family,Office for National Statistics,27/07/2021,Exp - Purchase Of Goods/Services - Contractors,Tech Delivery Legacy Sp,LA FOSSE ASSOCIATES LIMITED,206784,"3,600.00",Information Management Services,Large,Programme Expenditure,,
UK Statistics Family,Office for National Statistics,27/07/2021,Recovery Of Secondee Costs,Overseas Development,"Foreign, Commonwealth & Development Office",206786,"63,933.97",Seconded Staff Costs,Large,Programme Expenditure,,
UK Statistics Family,Office for National Statistics,28/07/2021,Specialist User Software And Hardware,Digital Delivery,Xma Limited,206794,397154.92,Costs Associated with Mobile Devices,Large,Programme Expenditure,,
UK Statistics Family,Office for National Statistics,28/07/2021,Exp - Purchase Of Goods/Services - Contractors,Data Architecture,Certes Computing Ltd,206800,12009.42,Information Management Services,SME,Programme Expenditure,,
UK Statistics Family,Office for National Statistics,28/07/2021,Exp - Purchase Of Goods/Services - Contractors,Strategy And Architecture,Certes Computing Ltd,206800,"2,879.71",Information Management Services,SME,Programme Expenditure,,
UK Statistics Family,Office for National Statistics,28/07/2021,Exp - Purchase Of Goods/Services - Contractors,Tech Delivery Data As A Platform,Certes Computing Ltd,206800,"8,006.28",Information Management Services,SME,Programme Expenditure,,
UK Statistics Family,Office for National Statistics,28/07/2021,Exp - Purchase Of Goods/Services - Contractors,Digital Delivery,Certes Computing Ltd,206800,"13,678.63",Information Management Services,SME,Programme Expenditure,,
UK Statistics Family,Office for National Statistics,28/07/2021,Exp - Purchase Of Goods/Services - Contractors,Testing,La International,206801,"26,172.29",Information Management Services,SME,Programme Expenditure,,
UK Statistics Family,Office for National Statistics,28/07/2021,Exp - Purchase Of Goods/Services - Contractors,Testing,La International,206801,"2,936.85",Information Management Services,SME,Programme Expenditure,,
UK Statistics Family,Office for National Statistics,28/07/2021,Exp - Purchase Of Goods/Services - Contractors,HALE,La International,206801,"2,413.75",Information Management Services,SME,Programme Expenditure,,
UK Statistics Family,Office for National Statistics,28/07/2021,Exp - Purchase Of Goods/Services - Contractors,INTEGRATED DATA STRATEGY AND DELIVERY,La International,206801,"6,210.00",Information Management Services,SME,Programme Expenditure,,
UK Statistics Family,Office for National Statistics,28/07/2021,Exp - Purchase Of Goods/Services - Contractors,Data Architecture,La International,206801,3524.22,Information Management Services,SME,Programme Expenditure,,
UK Statistics Family,Office for National Statistics,28/07/2021,Exp - Purchase Of Goods/Services - Contractors,Data Architecture,La International,206801,"3,171.80",Information Management Services,SME,Programme Expenditure,,
UK Statistics Family,Office for National Statistics,28/07/2021,Exp - Purchase Of Goods/Services - Contractors,Tech Delivery Next Gen IT And Infrastructure,La International,206801,-640.78,Information Management Services,SME,Programme Expenditure,,
UK Statistics Family,Office for National Statistics,28/07/2021,Print and Post,Social Survey Transformation Newport,APS Group,206803,"110,297.48",Print and Post Services,Large,Programme Expenditure,,
UK Statistics Family,Office for National Statistics,28/07/2021,EXP - PURCHASE OF GOODS/SERVICES -  NON IT CONTRACTUAL PAYMENTS,Census CCS Data Collection,Adecco UK Limited,206805,"688,148.40",Census People Services Contractual,SME,Programme Expenditure,,
UK Statistics Family,Office for National Statistics,28/07/2021,Marketing & Media,Stakeholder Engagement And Comms,Manning Gottlieb,206808,"81,221.37",Marketing Services,Large,Programme Expenditure,,
UK Statistics Family,Office for National Statistics,28/07/2021,Exp - Purchase Of Goods/Services - Contractors,Digital Publishing,Parity Resources Limited,206810,"12,960.00",Information Management Services,Large,Programme Expenditure,,
UK Statistics Family,Office for National Statistics,28/07/2021,Exp - Purchase Of Goods/Services - Contractors,Researcher Support And Data Access ,Parity Resources Limited,206810,1804.93,Information Management Services,Large,Programme Expenditure,,
UK Statistics Family,Office for National Statistics,28/07/2021,Exp - Short-Term Contract & Agency Staff - Full Cost,Ask Business Services,Parity Resources Limited,206810,"4,736.16",Information Management Services,Large,Programme Expenditure,,
UK Statistics Family,Office for National Statistics,28/07/2021,Exp - Purchase Of Goods/Services - Contractors,Data Architecture,Parity Resources Limited,206810,"13,636.22",Information Management Services,Large,Programme Expenditure,,
UK Statistics Family,Office for National Statistics,28/07/2021,Exp - Purchase Of Goods/Services - Contractors,Social Surveys Division,Parity Resources Limited,206810,"5,040.00",Information Management Services,Large,Programme Expenditure,,
UK Statistics Family,Office for National Statistics,28/07/2021,Exp - Purchase Of Goods/Services - Contractors,Researcher Support And Data Access ,LA FOSSE ASSOCIATES LIMITED,206812,"9,450.00",Information Management Services,Large,Programme Expenditure,,
UK Statistics Family,Office for National Statistics,28/07/2021,Exp - Purchase Of Goods/Services - Contractors,INTEGRATED DATA STRATEGY AND DELIVERY,LA FOSSE ASSOCIATES LIMITED,206812,"13,110.00",Information Management Services,Large,Programme Expenditure,,
UK Statistics Family,Office for National Statistics,28/07/2021,Exp - Purchase Of Goods/Services - Contractors,Data As A Service,LA FOSSE ASSOCIATES LIMITED,206812,"7,200.00",Information Management Services,Large,Programme Expenditure,,
UK Statistics Family,Office for National Statistics,28/07/2021,Exp - Purchase Of Goods/Services - Contractors,Data Architecture,SmartSourcing Ltd,206813,"6,432.00",Information Management Services,SME,Programme Expenditure,,
UK Statistics Family,Office for National Statistics,28/07/2021,Exp - Purchase Of Goods/Services - Contractors,Data Architecture,SmartSourcing Ltd,206813,"30,552.00",Information Management Services,SME,Programme Expenditure,,
UK Statistics Family,Office for National Statistics,28/07/2021,Marketing & Media,Social Survey Transformation Newport,Banner Group Ltd,206816,"43,200.00",Stationery,SME,Programme Expenditure,,
UK Statistics Family,Office for National Statistics,09/07/2021,Exp - Purchase Of Goods/Services - Incentive Payments,Covid Infection Survey,Sodexo Motivation Solutions U.K. ltd,30002864,"40,902.72",Survey Response Incentive Vouchers,Large,Programme Expenditure,,
UK Statistics Family,Office for National Statistics,09/07/2021,Exp - Purchase Of Goods/Services - Incentive Payments,Covid Infection Survey,Sodexo Motivation Solutions U.K. ltd,30002865,"55,608.00",Survey Response Incentive Vouchers,Large,Programme Expenditure,,
UK Statistics Family,Office for National Statistics,09/07/2021,Exp - Purchase Of Goods/Services - Incentive Payments,Covid Infection Survey,Sodexo Motivation Solutions U.K. ltd,30002866,"56,237.39",Survey Response Incentive Vouchers,Large,Programme Expenditure,,
UK Statistics Family,Office for National Statistics,09/07/2021,Exp - Purchase Of Goods/Services - Incentive Payments,Covid Infection Survey,Sodexo Motivation Solutions U.K. ltd,30002867,"31,822.76",Survey Response Incentive Vouchers,Large,Programme Expenditure,,
UK Statistics Family,Office for National Statistics,14/07/2021,End User Software And Hardware,IT Operations,O'Reilly Media Inc,30002869,"50,648.61",Training and Educational Services,Large,Programme Expenditure,,
UK Statistics Family,Office for National Statistics,14/07/2021,Surveys,WIDER SURVEILLANCE STUDIES,IQVIA Limited,30002872,"103,682.76",Statistical Services,Large,Programme Expenditure,,
UK Statistics Family,Office for National Statistics,14/07/2021,Exp - Purchase Of Goods/Services - Incentive Payments,Covid Infection Survey,Sodexo Motivation Solutions U.K. ltd,30002873,"27,391.72",Survey Response Incentive Vouchers,Large,Programme Expenditure,,
UK Statistics Family,Office for National Statistics,19/07/2021,Exp - Purchase Of Goods/Services - Incentive Payments,Covid Infection Survey,Sodexo Motivation Solutions U.K. ltd,30002879,"5,041,626.32",Survey Response Incentive Vouchers,Large,Programme Expenditure,,
UK Statistics Family,Office for National Statistics,22/07/2021,Exp - Purchase Of Goods/Services - Incentive Payments,Covid Infection Survey,Sodexo Motivation Solutions U.K. ltd,30002882,"2,143,204.62",Survey Response Incentive Vouchers,Large,Programme Expenditure,,
UK Statistics Family,Office for National Statistics,23/07/2021,Exp - Purchase Of Goods/Services - Incentive Payments,Covid Infection Survey,Sodexo Motivation Solutions U.K. ltd,30002883,"56,880.00",Survey Response Incentive Vouchers,Large,Programme Expenditure,,
UK Statistics Family,Office for National Statistics,26/07/2021,Surveys,Covid Infection Survey,IQVIA Limited,30002887,"990,463.46",Statistical Services,Large,Programme Expenditure,,
UK Statistics Family,Office for National Statistics,27/07/2021,Exp - Purchase Of Goods/Services - Incentive Payments,Covid Infection Survey,Sodexo Motivation Solutions U.K. ltd,30002893,"52,848.65",Survey Response Incentive Vouchers,Large,Programme Expenditure,,
UK Statistics Family,Office for National Statistics,28/07/2021,Surveys,Covid Infection Survey,IQVIA Limited,30002897,"21,120,000.00",Statistical Services,Large,Programme Expenditure,,
UK Statistics Family,Office for National Statistics,28/07/2021,Exp - Purchase Of Goods/Services - Incentive Payments,Covid Infection Survey,Sodexo Motivation Solutions U.K. ltd,30002898,"28,164.00",Survey Response Incentive Vouchers,Large,Programme Expenditure,,
UK Statistics Family,Office for National Statistics,29/07/2021,Exp - Purchase Of Goods/Services - Incentive Payments,Covid Infection Survey,Sodexo Motivation Solutions U.K. ltd,30002900,"84,832.80",Survey Response Incentive Vouchers,Large,Programme Expenditure,,
UK Statistics Family,Office for National Statistics,30/07/2021,Exp - Purchase Of Goods/Services - Incentive Payments,Covid Infection Survey,Sodexo Motivation Solutions U.K. ltd,30002903,"1,521,853.08",Survey Response Incentive Vouchers,Large,Programme Expenditure,,
,,,,,,,"52,931,056.48",,,
